Workbook

Sheet 计数统计表
A1: 方向 | B1: 工艺学硕 | C1: 工艺专硕 | D1: 催化学硕 | E1: 催化专硕 | F1: 工程学硕 | G1: 工程专硕 | H1: 环境学硕 | I1: 环境专硕 | J1: 国际班 | K1: 总计
A2: 人数 | B2: 52 | C2: 34 | D2: 30 | E2: 16 | F2: 34 | G2: 23 | H2: 31 | I2: 21 | J2: 14 | K2: =SUM(B2:I2) -> 241

Sheet 催化学硕
A1: 序号 | B1: 学号 | C1: 姓名 | D1: 方向 | E1: 德育成绩 | K1: 智育成绩 | Q1: 文体成绩 | W1: 总分 | X1: 排名
E2: 基础分 | F2: 奖励分 | G2: 惩罚分 | H2: 个人德育总分 | I2: 个人德育总分/基准 | J2: 德育总成绩 | K2: 基础分 | L2: 奖励分 | M2: 惩罚分 | N2: 个人智育总分 | O2: 个人智育总分/基准 | P2: 智育总成绩 | Q2: 基本分 | R2: 奖励分 | S2: 惩罚分 | T2: 个人文体总分 | U2: 个人文体总分/基准 | V2: 文体总成绩
A3: 1 | B3: 2021210514 | C3: 王琦 | D3: 催化学硕 | E3: 101.9032258 | F3: 11 | G3: 0 | H3: 112.9032258 | I3: =H3/$H$5 -> 0.9617498351 | J3: =I3*100 -> 96.17498351 | K3: 82.51888889 | L3: 8.708333333 | M3: 0 | N3: 91.22722222 | O3: =N3/$N$4 -> 0.9800187399 | P3: =O3*100 -> 98.00187399 | Q3: 100 | R3: 0 | S3: 0 | T3: 100 | U3: =T3/$T$5 -> 0.9345794393 | V3: =U3*100 -> 93.45794393 | W3: 97.18210289 | X3: 1
A4: 2 | B4: 2021210513 | C4: 冯博 | D4: 催化学硕 | E4: 95.74516129 | F4: 7 | G4: 0 | H4: 102.7451613 | I4: =H4/$H$5 -> 0.8752198285 | J4: 87.52198285 | K4: 84.37888889 | L4: 8.708333333 | M4: 0 | N4: 93.08722222 | O4: =N4/$N$4 -> 1 | P4: 100 | Q4: 100 | R4: 0 | S4: 0 | T4: 100 | U4: =T4/$T$5 -> 0.9345794393 | V4: 93.45794393 | W4: 96.85019096 | X4: 2
A5: 3 | B5: 2021210503 | C5: 谷敏 | D5: 催化学硕 | E5: 103.5935484 | F5: 13.8 | G5: 0 | H5: 117.3935484 | I5: =H5/$H$5 -> 1 | J5: 100 | K5: 85.53 | L5: 0 | M5: 0 | N5: 85.53 | O5: =N5/$N$4 -> 0.9188156866 | P5: 91.88156866 | Q5: 107 | R5: 0 | S5: 0 | T5: 107 | U5: =T5/$T$5 -> 1 | V5: 100 | W5: 94.31709806 | X5: 3
A6: 4 | B6: 2021210531 | C6: 贾鑫 | D6: 催化学硕 | E6: 98.38064516 | F6: 13 | G6: 0 | H6: 111.3806452 | I6: =H6/$H$5 -> 0.9487799516 | J6: 94.87799516 | K6: 87.4494958 | L6: 0 | M6: 0 | N6: 87.4494958 | O6: =N6/$N$4 -> 0.939436087 | P6: 93.9436087 | Q6: 100 | R6: 0 | S6: 0 | T6: 100 | U6: =T6/$T$5 -> 0.9345794393 | V6: 93.45794393 | W6: 94.08191952 | X6: 4
A7: 5 | B7: 2021210572 | C7: 姜珊 | D7: 催化学硕 | E7: 103.4967742 | F7: 12.3 | G7: 0 | H7: 115.7967742 | I7: =H7/$H$5 -> 0.9863981095 | J7: 98.63981095 | K7: 84.81344538 | L7: 0 | M7: 0 | N7: 84.81344538 | O7: =N7/$N$4 -> 0.9111180176 | P7: 91.11180176 | Q7: 100 | R7: 0 | S7: 0 | T7: 100 | U7: =T7/$T$5 -> 0.9345794393 | V7: 93.45794393 | W7: 92.85201782 | X7: 5
A8: 6 | B8: 2021210512 | C8: 胡溢玚 | D8: 催化学硕 | E8: 96.06129032 | F8: 5 | G8: 0 | H8: 101.0612903 | I8: =H8/$H$5 -> 0.8608760167 | J8: 86.08760167 | K8: 80.33269841 | L8: 7.5 | M8: 0 | N8: 87.83269841 | O8: =N8/$N$4 -> 0.9435526844 | P8: 94.35526844 | Q8: 100 | R8: 0 | S8: 0 | T8: 100 | U8: =T8/$T$5 -> 0.9345794393 | V8: 93.45794393 | W8: 92.61200264 | X8: 6
A9: 7 | B9: 2021210524 | C9: 黄柯文 | D9: 催化学硕 | E9: 100.1967742 | F9: 9.8 | G9: 0 | H9: 109.9967742 | I9: =H9/$H$5 -> 0.9369916465 | J9: 93.69916465 | K9: 85.72235294 | L9: 0 | M9: 0 | N9: 85.72235294 | O9: =N9/$N$4 -> 0.9208820598 | P9: 92.08820598 | Q9: 100 | R9: 0 | S9: 0 | T9: 100 | U9: =T9/$T$5 -> 0.9345794393 | V9: 93.45794393 | W9: 92.54737151 | X9: 7
A10: 8 | B10: 2021210517 | C10: 臧宏扬 | D10: 催化学硕 | E10: 102.8451613 | F10: 4 | G10: 0 | H10: 106.8451613 | I10: =H10/$H$5 -> 0.9101450868 | J10: 91.01450868 | K10: 85.74166667 | L10: 0 | M10: 0 | N10: 85.74166667 | O10: =N10/$N$4 -> 0.9210895397 | P10: 92.10895397 | Q10: 100 | R10: 0 | S10: 0 | T10: 100 | U10: =T10/$T$5 -> 0.9345794393 | V10: 93.45794393 | W10: 92.02496391 | X10: 8
A11: 9 | B11: 2021210523 | C11: 邴研 | D11: 催化学硕 | E11: 95.90322581 | F11: 0 | G11: 0 | H11: 95.90322581 | I11: =H11/$H$5 -> 0.8169377885 | J11: 81.69377885 | K11: 88.16352941 | L11: 0 | M11: 0 | N11: 88.16352941 | O11: =N11/$N$4 -> 0.9471066738 | P11: 94.71066738 | Q11: 100 | R11: 0 | S11: 0 | T11: 100 | U11: =T11/$T$5 -> 0.9345794393 | V11: 93.45794393 | W11: 91.98201733 | X11: 9
A12: 10 | B12: 2021210528 | C12: 孙成蓥 | D12: 催化学硕 | E12: 98.99354839 | F12: 10.8 | G12: 0 | H12: 109.7935484 | I12: =H12/$H$5 -> 0.9352604968 | J12: 93.52604968 | K12: 84.18631579 | L12: 0.3 | M12: 0 | N12: 84.48631579 | O12: =N12/$N$4 -> 0.9076037911 | P12: 90.76037911 | Q12: 100 | R12: 0 | S12: 0 | T12: 100 | U12: =T12/$T$5 -> 0.9345794393 | V12: 93.45794393 | W12: 91.5832697 | X12: 10
A13: 11 | B13: 2021210542 | C13: 周宜林 | D13: 催化学硕 | E13: 95.99354839 | F13: 0 | G13: 0 | H13: 95.99354839 | I13: =H13/$H$5 -> 0.8177071884 | J13: 81.77071884 | K13: 85.27777778 | L13: 0 | M13: 0 | N13: 85.27777778 | O13: =N13/$N$4 -> 0.9161061609 | P13: 91.61061609 | Q13: 103.3333333 | R13: 3.333333333 | S13: 0 | T13: 106.6666667 | U13: =T13/$T$5 -> 0.9968847352 | V13: 99.68847352 | W13: 90.45042238 | X13: 11
A14: 12 | B14: 2021210631 | C14: 袁兆朔 | D14: 催化学硕 | E14: 100.4806452 | F14: 3 | G14: 0 | H14: 103.4806452 | I14: =H14/$H$5 -> 0.8814849417 | J14: 88.14849417 | K14: 80.79210526 | L14: 3.125 | M14: 0 | N14: 83.91710526 | O14: =N14/$N$4 -> 0.9014889827 | P14: 90.14889827 | Q14: 100 | R14: 0 | S14: 0 | T14: 100 | U14: =T14/$T$5 -> 0.9345794393 | V14: 93.45794393 | W14: 90.07972202 | X14: 12
A15: 13 | B15: 2021210610 | C15: 吴家琪 | D15: 催化学硕 | E15: 95.81290323 | F15: 0.5 | G15: 0 | H15: 96.31290323 | I15: =H15/$H$5 -> 0.8204275665 | J15: 82.04275665 | K15: 85.40333333 | L15: 0 | M15: 0 | N15: 85.40333333 | O15: =N15/$N$4 -> 0.9174549556 | P15: 91.74549556 | Q15: 100 | R15: 0 | S15: 0 | T15: 100 | U15: =T15/$T$5 -> 0.9345794393 | V15: 93.45794393 | W15: 89.97619262 | X15: 13
A16: 14 | B16: 2021210603 | C16: 李声笛 | D16: 催化学硕 | E16: 95.76774194 | F16: 0 | G16: 0 | H16: 95.76774194 | I16: =H16/$H$5 -> 0.8157836887 | J16: 81.57836887 | K16: 85.47368421 | L16: 0 | M16: 0 | N16: 85.47368421 | O16: =N16/$N$4 -> 0.9182107079 | P16: 91.82107079 | Q16: 100 | R16: 0 | S16: 0 | T16: 100 | U16: =T16/$T$5 -> 0.9345794393 | V16: 93.45794393 | W16: 89.93621772 | X16: 14
A17: 15 | B17: 2021210518 | C17: 张哲 | D17: 催化学硕 | E17: 102.8419355 | F17: 11.6 | G17: 0 | H17: 114.4419355 | I17: =H17/$H$5 -> 0.9748571115 | J17: 97.48571115 | K17: 81.20444444 | L17: 0 | M17: 0 | N17: 81.20444444 | O17: =N17/$N$4 -> 0.8723479174 | P17: 87.23479174 | Q17: 100 | R17: 0 | S17: 0 | T17: 100 | U17: =T17/$T$5 -> 0.9345794393 | V17: 93.45794393 | W17: 89.90729084 | X17: 15
A18: 16 | B18: 2021210573 | C18: 李瑞轩 | D18: 催化学硕 | E18: 96.03870968 | F18: 0 | G18: 0 | H18: 96.03870968 | I18: =H18/$H$5 -> 0.8180918883 | J18: 81.80918883 | K18: 85.32142857 | L18: 0 | M18: 0 | N18: 85.32142857 | O18: =N18/$N$4 -> 0.9165750845 | P18: 91.65750845 | Q18: 100 | R18: 0 | S18: 0 | T18: 100 | U18: =T18/$T$5 -> 0.9345794393 | V18: 93.45794393 | W18: 89.86788807 | X18: 16
A19: 17 | B19: 2021210549 | C19: 黄海洋 | D19: 催化学硕 | E19: 100.0612903 | F19: 0 | G19: 0 | H19: 100.0612903 | I19: =H19/$H$5 -> 0.852357661 | J19: 85.2357661 | K19: 83.33433333 | L19: 0 | M19: 0 | N19: 83.33433333 | O19: =N19/$N$4 -> 0.8952284894 | P19: 89.52284894 | Q19: 100 | R19: 0 | S19: 0 | T19: 100 | U19: =T19/$T$5 -> 0.9345794393 | V19: 93.45794393 | W19: 89.05894187 | X19: 17
A20: 18 | B20: 2021210604 | C20: 张铸文 | D20: 催化学硕 | E20: 95.90322581 | F20: 0 | G20: 0 | H20: 95.90322581 | I20: =H20/$H$5 -> 0.8169377885 | J20: 81.69377885 | K20: 84.19333333 | L20: 0 | M20: 0 | N20: 84.19333333 | O20: =N20/$N$4 -> 0.9044563939 | P20: 90.44563939 | Q20: 100 | R20: 0 | S20: 0 | T20: 100 | U20: =T20/$T$5 -> 0.9345794393 | V20: 93.45794393 | W20: 88.99649774 | X20: 18
A21: 19 | B21: 2021210568 | C21: 刘尚书 | D21: 催化学硕 | E21: 97.92580645 | F21: 14 | G21: 0 | H21: 111.9258065 | I21: =H21/$H$5 -> 0.9534238294 | J21: 95.34238294 | K21: 79.57777778 | L21: 0 | M21: 0 | N21: 79.57777778 | O21: =N21/$N$4 -> 0.854873267 | P21: 85.4873267 | Q21: 100 | R21: 0 | S21: 0 | T21: 100 | U21: =T21/$T$5 -> 0.9345794393 | V21: 93.45794393 | W21: 88.25539967 | X21: 19
A22: 20 | B22: 2021210532 | C22: 刘璨 | D22: 催化学硕 | E22: 101.5709677 | F22: 0 | G22: 0 | H22: 101.5709677 | I22: =H22/$H$5 -> 0.8652176302 | J22: 86.52176302 | K22: 80.46243697 | L22: 0 | M22: 0 | N22: 80.46243697 | O22: =N22/$N$4 -> 0.8643768184 | P22: 86.43768184 | Q22: 100 | R22: 0 | S22: 0 | T22: 100 | U22: =T22/$T$5 -> 0.9345794393 | V22: 93.45794393 | W22: 87.15652428 | X22: 20
A23: 21 | B23: 2021210550 | C23: 孟岩 | D23: 催化学硕 | E23: 100.2322581 | F23: 3 | G23: 0 | H23: 103.2322581 | I23: =H23/$H$5 -> 0.8793690921 | J23: 87.93690921 | K23: 79.96554622 | L23: 0 | M23: 0 | N23: 79.96554622 | O23: =N23/$N$4 -> 0.8590389133 | P23: 85.90389133 | Q23: 100 | R23: 0 | S23: 0 | T23: 100 | U23: =T23/$T$5 -> 0.9345794393 | V23: 93.45794393 | W23: 87.06590016 | X23: 21
A24: 22 | B24: 2021210547 | C24: 杨丽 | D24: 催化学硕 | E24: 96.03870968 | F24: 0 | G24: 0 | H24: 96.03870968 | I24: =H24/$H$5 -> 0.8180918883 | J24: 81.80918883 | K24: 81.07194444 | L24: 0 | M24: 0 | N24: 81.07194444 | O24: =N24/$N$4 -> 0.8709245212 | P24: 87.09245212 | Q24: 100 | R24: 0 | S24: 0 | T24: 100 | U24: =T24/$T$5 -> 0.9345794393 | V24: 93.45794393 | W24: 86.67234864 | X24: 22
A25: 23 | B25: 2021210505 | C25: 王浩 | D25: 催化学硕 | E25: 95.79032258 | F25: 0 | G25: 0 | H25: 95.79032258 | I25: =H25/$H$5 -> 0.8159760387 | J25: 81.59760387 | K25: 80.8294 | L25: 0 | M25: 0 | N25: 80.8294 | O25: =N25/$N$4 -> 0.8683189601 | P25: 86.83189601 | Q25: 100 | R25: 0 | S25: 0 | T25: 100 | U25: =T25/$T$5 -> 0.9345794393 | V25: 93.45794393 | W25: 86.44764237 | X25: 23
A26: 24 | B26: 2021210569 | C26: 赵少健 | D26: 催化学硕 | E26: 96.08387097 | F26: 0 | G26: 0 | H26: 96.08387097 | I26: =H26/$H$5 -> 0.8184765883 | J26: 81.84765883 | K26: 80.70674603 | L26: 0 | M26: 0 | N26: 80.70674603 | O26: =N26/$N$4 -> 0.867001336 | P26: 86.7001336 | Q26: 100 | R26: 0 | S26: 0 | T26: 100 | U26: =T26/$T$5 -> 0.9345794393 | V26: 93.45794393 | W26: 86.40541968 | X26: 24
A27: 25 | B27: 2021210548 | C27: 程明健 | D27: 催化学硕 | E27: 96.06129032 | F27: 0 | G27: 0 | H27: 96.06129032 | I27: =H27/$H$5 -> 0.8182842383 | J27: 81.82842383 | K27: 80.31578947 | L27: 0 | M27: 0 | N27: 80.31578947 | O27: =N27/$N$4 -> 0.862801441 | P27: 86.2801441 | Q27: 100 | R27: 0 | S27: 0 | T27: 100 | U27: =T27/$T$5 -> 0.9345794393 | V27: 93.45794393 | W27: 86.10758003 | X27: 25
A28: 26 | B28: 2021210541 | C28: 赵春晓 | D28: 催化学硕 | E28: 99.9483871 | F28: 4 | G28: 0 | H28: 103.9483871 | I28: =H28/$H$5 -> 0.8854693339 | J28: 88.54693339 | K28: 77.93777778 | L28: 0 | M28: 0 | N28: 77.93777778 | O28: =N28/$N$4 -> 0.8372553818 | P28: 83.72553818 | Q28: 100 | R28: 0 | S28: 0 | T28: 100 | U28: =T28/$T$5 -> 0.9345794393 | V28: 93.45794393 | W28: 85.66305779 | X28: 26
A29: 27 | B29: 2021210546 | C29: 杜卫博 | D29: 催化学硕 | E29: 99.03870968 | F29: 7.6 | G29: 0 | H29: 106.6387097 | I29: =H29/$H$5 -> 0.9083864586 | J29: 90.83864586 | K29: 76.60694444 | L29: 0 | M29: 0 | N29: 76.60694444 | O29: =N29/$N$4 -> 0.8229587543 | P29: 82.29587543 | Q29: 100 | R29: 0 | S29: 0 | T29: 100 | U29: =T29/$T$5 -> 0.9345794393 | V29: 93.45794393 | W29: 85.12063637 | X29: 27
A30: 28 | B30: 2021210643 | C30: 江蒙伟 | D30: 催化学硕 | E30: 97.97096774 | F30: 2 | G30: 0 | H30: 99.97096774 | I30: =H30/$H$5 -> 0.8515882612 | J30: 85.15882612 | K30: 77.585 | L30: 0 | M30: 0 | N30: 77.585 | O30: =N30/$N$4 -> 0.8334656266 | P30: 83.34656266 | Q30: 100 | R30: 0 | S30: 0 | T30: 100 | U30: =T30/$T$5 -> 0.9345794393 | V30: 93.45794393 | W30: 84.72015348 | X30: 28
A31: 29 | B31: 2021210504 | C31: 官宇 | D31: 催化学硕 | E31: 95.88064516 | F31: 3 | G31: 0 | H31: 98.88064516 | I31: =H31/$H$5 -> 0.8423005056 | J31: 84.23005056 | K31: 77.6559 | L31: 0 | M31: 0 | N31: 77.6559 | O31: =N31/$N$4 -> 0.8342272779 | P31: 83.42272779 | Q31: 100 | R31: 0 | S31: 0 | T31: 100 | U31: =T31/$T$5 -> 0.9345794393 | V31: 93.45794393 | W31: 84.58771396 | X31: 29
A32: 30 | B32: 2021210602 | C32: 海小祥 | D32: 催化学硕 | E32: 100.4129032 | F32: 0 | G32: 0 | H32: 100.4129032 | I32: =H32/$H$5 -> 0.8553528248 | J32: 85.53528248 | K32: 76.44603175 | L32: 0 | M32: 0 | N32: 76.44603175 | O32: =N32/$N$4 -> 0.8212301315 | P32: 82.12301315 | Q32: 100 | R32: 0 | S32: 0 | T32: 100 | U32: =T32/$T$5 -> 0.9345794393 | V32: 93.45794393 | W32: 83.93896009 | X32: 30

Sheet 催化专硕
A1: 序号 | B1: 学号 | C1: 姓名 | D1: 方向 | E1: 德育成绩 | K1: 智育成绩 | Q1: 文体成绩 | W1: 总分 | X1: 排名
E2: 基础分(去年个人德育总分） | F2: 奖励分 | G2: 惩罚分 | H2: 个人德育总分 | I2: 个人德育总分/基准 | J2: 德育总成绩 | K2: 基础分（去年个人智育总分） | L2: 奖励分 | M2: 惩罚分 | N2: 个人智育总分 | O2: 个人智育总分/基准 | P2: 智育总成绩 | Q2: 基本分（去年个人总体总分） | R2: 奖励分 | S2: 惩罚分 | T2: 个人文体总分 | U2: 个人文体总分/基准 | V2: 文体总成绩
A3: 1 | B3: 2021215374 | C3: 白玉华 | D3: 催化专硕 | E3: 103.9365854 | F3: 3 | G3: 0 | H3: 106.9365854 | I3: =H3/$H$4 -> 0.8466544366 | J3: =I3*100 -> 84.66544366 | K3: 83.54431373 | L3: 12 | M3: 0 | N3: 95.54431373 | O3: =N3/$N$3 -> 1 | P3: =O3*100 -> 100 | Q3: 102 | R3: 0 | S3: 0 | T3: 102 | U3: =T3/$T$4 -> 0.8864426419 | V3: =U3*100 -> 88.64426419 | W3: =V3*0.1+P3*0.7+J3*0.2 -> 95.79751515 | X3: 1
A4: 2 | B4: 2021215325 | C4: 沈红茹 | D4: 催化专硕 | E4: 107.304878 | F4: 19 | G4: 0 | H4: 126.304878 | I4: =H4/$H$4 -> 1 | J4: 100 | K4: 87.56333333 | L4: 0 | M4: 0 | N4: 87.56333333 | O4: =N4/$N$3 -> 0.9164682849 | P4: 91.64682849 | Q4: 107.0666667 | R4: 8 | S4: 0 | T4: 115.0666667 | U4: =T4/$T$4 -> 1 | V4: 100 | W4: 94.15277994 | X4: 2
A5: 3 | B5: 2021215316 | C5: 辛露伟 | D5: 催化专硕 | E5: 105.8902439 | F5: 13.6 | G5: 0 | H5: 119.4902439 | I5: =H5/$H$4 -> 0.9460461524 | J5: 94.60461524 | K5: 82.45735294 | L5: 1 | M5: 0 | N5: 83.45735294 | O5: =N5/$N$3 -> 0.8734936668 | P5: 87.34936668 | Q5: 104.6666667 | R5: 0 | S5: 0 | T5: 104.6666667 | U5: =T5/$T$4 -> 0.909617613 | V5: 90.9617613 | W5: 89.16165586 | X5: 3
A6: 4 | B6: 2021215342 | C6: 张润程 | D6: 催化专硕 | E6: 99.07317073 | F6: 8 | G6: 0 | H6: 107.0731707 | I6: =H6/$H$4 -> 0.8477358308 | J6: 84.77358308 | K6: 85.60642045 | L6: 0 | M6: 0 | N6: 85.60642045 | O6: =N6/$N$3 -> 0.8959865545 | P6: 89.59865545 | Q6: 100 | R6: 4.666666667 | S6: 0 | T6: 104.6666667 | U6: =T6/$T$4 -> 0.909617613 | V6: 90.9617613 | W6: 88.76995156 | X6: 4
A7: 5 | B7: 2021215326 | C7: 甄力研 | D7: 催化专硕 | E7: 98.03902439 | F7: 0 | G7: 0 | H7: 98.03902439 | I7: =H7/$H$4 -> 0.776209327 | J7: 77.6209327 | K7: 86.73220588 | L7: 0 | M7: 0 | N7: 86.73220588 | O7: =N7/$N$3 -> 0.9077694161 | P7: 90.77694161 | Q7: 100 | R7: 0 | S7: 0 | T7: 100 | U7: =T7/$T$4 -> 0.8690614137 | V7: 86.90614137 | W7: 87.7586598 | X7: 5
A8: 6 | B8: 2021215324 | C8: 张祎 | D8: 催化专硕 | E8: 102.6 | F8: 4.6 | G8: 0 | H8: 107.2 | I8: =H8/$H$4 -> 0.8487399826 | J8: 84.87399826 | K8: 83.76857143 | L8: 0 | M8: 0 | N8: 83.76857143 | O8: =N8/$N$3 -> 0.8767509877 | P8: 87.67509877 | Q8: 102 | R8: 0 | S8: 0 | T8: 102 | U8: =T8/$T$4 -> 0.8864426419 | V8: 88.64426419 | W8: 87.21179521 | X8: 6
A9: 7 | B9: 2021215319 | C9: 王沼桂 | D9: 催化专硕 | E9: 98.93658537 | F9: 0 | G9: 0 | H9: 98.93658537 | I9: =H9/$H$4 -> 0.7833156319 | J9: 78.33156319 | K9: 84.536125 | L9: 0 | M9: 0 | N9: 84.536125 | O9: =N9/$N$3 -> 0.8847844702 | P9: 88.47844702 | Q9: 102 | R9: 0 | S9: 0 | T9: 102 | U9: =T9/$T$4 -> 0.8864426419 | V9: 88.64426419 | W9: 86.46565197 | X9: 7
A10: 8 | B10: 2021215357 | C10: 范梦凡 | D10: 催化专硕 | E10: 102.0219512 | F10: 0 | G10: 0 | H10: 102.0219512 | I10: =H10/$H$4 -> 0.8077435551 | J10: 80.77435551 | K10: 82.23380952 | L10: 0 | M10: 0 | N10: 82.23380952 | O10: =N10/$N$3 -> 0.8606876361 | P10: 86.06876361 | Q10: 105.6 | R10: 8 | S10: 0 | T10: 113.6 | U10: =T10/$T$4 -> 0.9872537659 | V10: 98.72537659 | W10: 86.27554329 | X10: 8
A11: 9 | B11: 2021215306 | C11: 侯奕康 | D11: 催化专硕 | E11: 97.9195122 | F11: 4 | G11: 0 | H11: 101.9195122 | I11: =H11/$H$4 -> 0.8069325094 | J11: 80.69325094 | K11: 83.24666667 | L11: 0 | M11: 0 | N11: 83.24666667 | O11: =N11/$N$3 -> 0.871288551 | P11: 87.1288551 | Q11: 100 | R11: 0 | S11: 0 | T11: 100 | U11: =T11/$T$4 -> 0.8690614137 | V11: 86.90614137 | W11: 85.8194629 | X11: 9
A12: 10 | B12: 2021215369 | C12: 徐彤 | D12: 催化专硕 | E12: 102.3682927 | F12: 3 | G12: 0 | H12: 105.3682927 | I12: =H12/$H$4 -> 0.8342377136 | J12: 83.42377136 | K12: 81.35686275 | L12: 0 | M12: 0 | N12: 81.35686275 | O12: =N12/$N$3 -> 0.8515092063 | P12: 85.15092063 | Q12: 100 | R12: 0 | S12: 0 | T12: 100 | U12: =T12/$T$4 -> 0.8690614137 | V12: 86.90614137 | W12: 84.98101285 | X12: 10
A13: 11 | B13: 2021215339 | C13: 彭博 | D13: 催化专硕 | E13: 102.5195122 | F13: 6.6 | G13: 0 | H13: 109.1195122 | I13: =H13/$H$4 -> 0.8639374336 | J13: 86.39374336 | K13: 79.36862745 | L13: 0 | M13: 0 | N13: 79.36862745 | O13: =N13/$N$3 -> 0.8306996446 | P13: 83.06996446 | Q13: 100 | R13: 0 | S13: 0 | T13: 100 | U13: =T13/$T$4 -> 0.8690614137 | V13: 86.90614137 | W13: 84.11833793 | X13: 11
A14: 12 | B14: 2021215375 | C14: 乐小莉 | D14: 催化专硕 | E14: 103.4878049 | F14: 3 | G14: 0 | H14: 106.4878049 | I14: =H14/$H$4 -> 0.8431012842 | J14: 84.31012842 | K14: 79.28705882 | L14: 0.5 | M14: 0 | N14: 79.78705882 | O14: =N14/$N$3 -> 0.8350790928 | P14: 83.50790928 | Q14: 100 | R14: 0 | S14: 0 | T14: 100 | U14: =T14/$T$4 -> 0.8690614137 | V14: 86.90614137 | W14: 84.00817631 | X14: 12
A15: 13 | B15: 2021215360 | C15: 胡敏 | D15: 催化专硕 | E15: 101.9707317 | F15: 0 | G15: 0 | H15: 101.9707317 | I15: =H15/$H$4 -> 0.8073380322 | J15: 80.73380322 | K15: 79.64426471 | L15: 0 | M15: 0 | N15: 79.64426471 | O15: =N15/$N$3 -> 0.8335845599 | P15: 83.35845599 | Q15: 104.6666667 | R15: 0 | S15: 0 | T15: 104.6666667 | U15: =T15/$T$4 -> 0.909617613 | V15: 90.9617613 | W15: 83.59385597 | X15: 13
A16: 14 | B16: 2021215341 | C16: 苏良健 | D16: 催化专硕 | E16: 97.93658537 | F16: 0 | G16: 0 | H16: 97.93658537 | I16: =H16/$H$4 -> 0.7753982814 | J16: 77.53982814 | K16: 80.37 | L16: 0 | M16: 0 | N16: 80.37 | O16: =N16/$N$3 -> 0.8411803577 | P16: 84.11803577 | Q16: 100 | R16: 0 | S16: 0 | T16: 100 | U16: =T16/$T$4 -> 0.8690614137 | V16: 86.90614137 | W16: 83.08120481 | X16: 14
A17: 15 | B17: 2021215323 | C17: 陈铭宇 | D17: 催化专硕 | E17: 98.07317073 | F17: 0 | G17: 0 | H17: 98.07317073 | I17: =H17/$H$4 -> 0.7764796756 | J17: 77.64796756 | K17: 77.5092437 | L17: 0 | M17: 0 | N17: 77.5092437 | O17: =N17/$N$3 -> 0.8112386878 | P17: 81.12386878 | Q17: 100 | R17: 0 | S17: 0 | T17: 100 | U17: =T17/$T$4 -> 0.8690614137 | V17: 86.90614137 | W17: 81.0069158 | X17: 15
A18: 16 | B18: 2021215315 | C18: 朴宇 | D18: 催化专硕 | E18: 97.98780488 | F18: 0 | G18: 0 | H18: 97.98780488 | I18: =H18/$H$4 -> 0.7758038042 | J18: 77.58038042 | K18: 75.75529412 | L18: 0 | M18: 0 | N18: =K18 -> 75.75529412 | O18: =N18/$N$3 -> 0.7928812418 | P18: 79.28812418 | Q18: 100 | R18: 0 | S18: 0 | T18: 100 | U18: =T18/$T$4 -> 0.8690614137 | V18: 86.90614137 | W18: 79.70837715 | X18: 16

Sheet 工艺学硕
A1: 序号 | B1: 学号 | C1: 姓名 | D1: 方向 | E1: 德育成绩 | K1: 智育成绩 | Q1: 文体成绩 | W1: 总分 | X1: 排名
E2: 基础分(去年个人德育总分） | F2: 奖励分 | G2: 惩罚分 | H2: 个人德育总分 | I2: 个人德育总分/基准 | J2: 德育总成绩 | K2: 基础分（去年个人智育总分） | L2: 奖励分 | M2: 惩罚分 | N2: 个人智育总分 | O2: 个人智育总分/基准 | P2: 智育总成绩 | Q2: 基本分（去年个人总体总分） | R2: 奖励分 | S2: 惩罚分 | T2: 个人文体总分 | U2: 个人文体总分/基准 | V2: 文体总成绩
A3: 1 | B3: 2021210626 | C3: 马小娟 | D3: 工艺学硕 | E3: 104.012 | F3: 27.2 | G3: 0 | H3: 131.212 | I3: 1 | J3: 100 | K3: 90.78888889 | L3: 25.5 | M3: 0 | N3: 116.2888889 | O3: 1 | P3: 100 | Q3: 100 | R3: 3.333333 | S3: 0 | T3: 103.333333 | U3: 0.8401084007 | V3: 84.01084007 | W3: 98.40108401 | X3: 1
A4: 2 | B4: 2021210620 | C4: 张晨 | D4: 工艺学硕 | E4: 112.764 | F4: 17.25 | G4: 0 | H4: 130.014 | I4: 0.9908697375 | J4: 99.08697375 | K4: 85.67288889 | L4: 17.86994949 | M4: 0 | N4: 103.5428384 | O4: 0.8903932213 | P4: 89.03932213 | Q4: 100 | R4: 0 | S4: 0 | T4: 100 | U4: 0.8130081323 | V4: 81.30081323 | W4: 90.27500157 | X4: 2
A5: 3 | B5: 2021210608 | C5: 吴剑 | D5: 工艺学硕 | E5: 96.844 | F5: 5 | G5: 0 | H5: 101.844 | I5: 0.776179008 | J5: 77.6179008 | K5: 92.75 | L5: 10 | M5: 0 | N5: 102.75 | O5: 0.883575387 | P5: 88.3575387 | Q5: 100 | R5: 0 | S5: 0 | T5: 100 | U5: 0.8130081323 | V5: 81.30081323 | W5: 85.50393857 | X5: 3
A6: 4 | B6: 2021210625 | C6: 孔繁格 | D6: 工艺学硕 | E6: 103.732 | F6: 18.8 | G6: 0 | H6: 122.532 | I6: 0.9338475139 | J6: 93.38475139 | K6: 92.75 | L6: 1 | M6: 0 | N6: 93.75 | O6: 0.8061819224 | P6: 80.61819224 | Q6: 106.6666667 | R6: 16.333333 | S6: 0 | T6: 122.9999997 | U6: 1 | V6: 100 | W6: 85.10968485 | X6: 4
A7: 5 | B7: 2021210600 | C7: 刘晓月 | D7: 工艺学硕 | E7: 99.372 | F7: 7 | G7: 0 | H7: 106.372 | I7: 0.8106880468 | J7: 81.06880468 | K7: 86.8 | L7: 6.696428571 | M7: 0 | N7: 93.49642857 | O7: 0.8040013923 | P7: 80.40013923 | Q7: 100 | R7: 0 | S7: 0 | T7: 100 | U7: 0.8130081323 | V7: 81.30081323 | W7: 80.62393972 | X7: 5
A8: 6 | B8: 2021210611 | C8: 李爽 | D8: 工艺学硕 | E8: 103.148 | F8: 5 | G8: 0 | H8: 108.148 | I8: 0.8242233942 | J8: 82.42233942 | K8: 83.443 | L8: 9 | M8: 0 | N8: 92.443 | O8: 0.7949426715 | P8: 79.49426715 | Q8: 100 | R8: 0 | S8: 0 | T8: 100 | U8: 0.8130081323 | V8: 81.30081323 | W8: 80.26053621 | X8: 6
A9: 7 | B9: 2021210634 | C9: 喻婉婷 | D9: 工艺学硕 | E9: 103.224 | F9: 14.6 | G9: 0 | H9: 117.824 | I9: 0.8979666494 | J9: 89.79666494 | K9: 88.445 | L9: 0 | M9: 0 | N9: 88.445 | O9: 0.7605627747 | P9: 76.05627747 | Q9: 100 | R9: 0 | S9: 0 | T9: 100 | U9: 0.8130081323 | V9: 81.30081323 | W9: 79.32880854 | X9: 7
A10: 8 | B10: 2021210633 | C10: 何海平 | D10: 工艺学硕 | E10: 99.756 | F10: 8 | G10: 0 | H10: 107.756 | I10: 0.8212358626 | J10: 82.12358626 | K10: 85.80555556 | L10: 3.571428571 | M10: 0 | N10: 89.37698413 | O10: 0.7685771614 | P10: 76.85771614 | Q10: 100 | R10: 0 | S10: 0 | T10: 100 | U10: 0.8130081323 | V10: 81.30081323 | W10: 78.35519987 | X10: 8
A11: 9 | B11: 2021210525 | C11: 黎春霖 | D11: 工艺学硕 | E11: 96.9 | F11: 5 | G11: 0 | H11: 101.9 | I11: 0.7766057983 | J11: 77.66057983 | K11: 90.17375 | L11: 0.25 | M11: 0 | N11: 90.42375 | O11: 0.7775785878 | P11: 77.75785878 | Q11: 100 | R11: 0 | S11: 0 | T11: 100 | U11: 0.8130081323 | V11: 81.30081323 | W11: 78.09269843 | X11: 9
A12: 10 | B12: 2021210536 | C12: 刘束玉 | D12: 工艺学硕 | E12: 101.7 | F12: 15.6 | G12: 0 | H12: 117.3 | I12: 0.8939731122 | J12: 89.39731122 | K12: 86.039 | L12: 0.25 | M12: 0 | N12: 86.289 | O12: 0.7420227403 | P12: 74.20227403 | Q12: 100 | R12: 0 | S12: 0 | T12: 100 | U12: 0.8130081323 | V12: 81.30081323 | W12: 77.95113539 | X12: 10
A13: 11 | B13: 2021210555 | C13: 王鹏军 | D13: 工艺学硕 | E13: 109 | F13: 16.6 | G13: 0 | H13: 125.6 | I13: 0.9572295217 | J13: 95.72295217 | K13: 83.81271429 | L13: 0 | M13: 0 | N13: 83.81271429 | O13: 0.7207284813 | P13: 72.07284813 | Q13: 100 | R13: 0 | S13: 0 | T13: 100 | U13: 0.8130081323 | V13: 81.30081323 | W13: 77.72566545 | X13: 11
A14: 12 | B14: 2021210585 | C14: 王建丽 | D14: 工艺学硕 | E14: 103.392 | F14: 8 | G14: 0 | H14: 111.392 | I14: 0.8489467427 | J14: 84.89467427 | K14: 86.44176471 | L14: 0 | M14: 0 | N14: 86.44176471 | O14: 0.7433364058 | P14: 74.33364058 | Q14: 100 | R14: 0 | S14: 0 | T14: 100 | U14: 0.8130081323 | V14: 81.30081323 | W14: 77.14256459 | X14: 12
A15: 13 | B15: 2021210590 | C15: 孙俭 | D15: 工艺学硕 | E15: 103.876 | F15: 4 | G15: 0 | H15: 107.876 | I15: 0.8221504131 | J15: 82.21504131 | K15: 86.05323529 | L15: 1.25 | M15: 0 | N15: 87.30323529 | O15: 0.7507444273 | P15: 75.07444273 | Q15: 100 | R15: 0 | S15: 0 | T15: 100 | U15: 0.8130081323 | V15: 81.30081323 | W15: 77.1251995 | X15: 13
A16: 14 | B16: 2021210537 | C16: 宁小奇 | D16: 工艺学硕 | E16: 101.1 | F16: 0 | G16: 0 | H16: 101.1 | I16: 0.7705087949 | J16: 77.05087949 | K16: 84.80766667 | L16: 4 | M16: 0 | N16: 88.80766667 | O16: 0.7636814447 | P16: 76.36814447 | Q16: 100 | R16: 0 | S16: 0 | T16: 100 | U16: 0.8130081323 | V16: 81.30081323 | W16: 76.99795835 | X16: 14
A17: 15 | B17: 2021210538 | C17: 姬娅茹 | D17: 工艺学硕 | E17: 101.1 | F17: 9 | G17: 0 | H17: 110.1 | I17: 0.8391000823 | J17: 83.91000823 | K17: 85.491 | L17: 0.567 | M17: 0 | N17: 86.058 | O17: 0.740036308 | P17: 74.0036308 | Q17: 100 | R17: 0 | S17: 0 | T17: 100 | U17: 0.8130081323 | V17: 81.30081323 | W17: 76.71462453 | X17: 15
A18: 16 | B18: 2021210592 | C18: 郑陶然 | D18: 工艺学硕 | E18: 97.9 | F18: 0 | G18: 0 | H18: 97.9 | I18: 0.7461207816 | J18: 74.61207816 | K18: 83.6775 | L18: 5 | M18: 0 | N18: 88.6775 | O18: 0.7625621059 | P18: 76.25621059 | Q18: 100 | R18: 0 | S18: 0 | T18: 100 | U18: 0.8130081323 | V18: 81.30081323 | W18: 76.43184437 | X18: 16
A19: 17 | B19: 2021210639 | C19: 许振 | D19: 工艺学硕 | E19: 101.876 | F19: 7 | G19: 0 | H19: 108.876 | I19: 0.8297716672 | J19: 82.97716672 | K19: 85.69 | L19: 0 | M19: 0 | N19: 85.69 | O19: 0.7368717753 | P19: 73.68717753 | Q19: 100 | R19: 0 | S19: 0 | T19: 100 | U19: 0.8130081323 | V19: 81.30081323 | W19: 76.30653894 | X19: 17
A20: 18 | B20: 2021210630 | C20: 杨坤 | D20: 工艺学硕 | E20: 96.484 | F20: 9 | G20: 0 | H20: 105.484 | I20: 0.8039203731 | J20: 80.39203731 | K20: 86.41587302 | L20: 0 | M20: 0 | N20: 86.41587302 | O20: 0.7431137561 | P20: 74.31137561 | Q20: 100 | R20: 0 | S20: 0 | T20: 100 | U20: 0.8130081323 | V20: 81.30081323 | W20: 76.22645171 | X20: 18
A21: 19 | B21: 2021210578 | C21: 封心怡 | D21: 工艺学硕 | E21: 97.1 | F21: 4 | G21: 0 | H21: 101.1 | I21: 0.7705087949 | J21: 77.05087949 | K21: 85.387001 | L21: 1.92 | M21: 0 | N21: 87.307001 | O21: 0.7507768097 | P21: 75.07768097 | Q21: 100 | R21: 0 | S21: 0 | T21: 100 | U21: 0.8130081323 | V21: 81.30081323 | W21: 76.0946339 | X21: 19
A22: 20 | B22: 2021210567 | C22: 郑龙娇 | D22: 工艺学硕 | E22: 102.6 | F22: 4 | G22: 0 | H22: 106.6 | I22: 0.8124256928 | J22: 81.24256928 | K22: 84.56733333 | L22: 1.25 | M22: 0 | N22: 85.81733333 | O22: 0.7379667495 | P22: 73.79667495 | Q22: 100 | R22: 0 | S22: 0 | T22: 100 | U22: 0.8130081323 | V22: 81.30081323 | W22: 76.03626764 | X22: 20
A23: 21 | B23: 2021210562 | C23: 孙栋 | D23: 工艺学硕 | E23: 97.1 | F23: 0 | G23: 0 | H23: 97.1 | I23: 0.7400237783 | J23: 74.00237783 | K23: 83.043869 | L23: 5.15 | M23: 0 | N23: 88.193869 | O23: 0.7584032305 | P23: 75.84032305 | Q23: 100 | R23: 0 | S23: 0 | T23: 100 | U23: 0.8130081323 | V23: 81.30081323 | W23: 76.01878302 | X23: 21
A24: 22 | B24: 2021210580 | C24: 张建超 | D24: 工艺学硕 | E24: 108.9 | F24: 14.8 | G24: 0 | H24: 123.7 | I24: 0.9427491388 | J24: 94.27491388 | K24: 81.339 | L24: 0 | M24: 0 | N24: 81.339 | O24: 0.6994563348 | P24: 69.94563348 | Q24: 100 | R24: 0 | S24: 0 | T24: 100 | U24: 0.8130081323 | V24: 81.30081323 | W24: 75.94700753 | X24: 22
A25: 23 | B25: 2021210561 | C25: 房浩楠 | D25: 工艺学硕 | E25: 100.6 | F25: 3 | G25: 0 | H25: 103.6 | I25: 0.7895619303 | J25: 78.95619303 | K25: 85.416 | L25: 1 | M25: 0 | N25: 86.416 | O25: 0.7431148481 | P25: 74.31148481 | Q25: 100 | R25: 0 | S25: 0 | T25: 100 | U25: 0.8130081323 | V25: 81.30081323 | W25: 75.93935929 | X25: 23
A26: 24 | B26: 2021210632 | C26: 韩轲 | D26: 工艺学硕 | E26: 97.152 | F26: 4 | G26: 0 | H26: 101.152 | I26: 0.7709051001 | J26: 77.09051001 | K26: 86.17222222 | L26: 0 | M26: 0 | N26: 86.17222222 | O26: 0.7410185362 | P26: 74.10185362 | Q26: 100 | R26: 0 | S26: 0 | T26: 100 | U26: 0.8130081323 | V26: 81.30081323 | W26: 75.41948086 | X26: 24
A27: 25 | B27: 2021210637 | C27: 候宁冉 | D27: 工艺学硕 | E27: 104.668 | F27: 10.1 | G27: 0 | H27: 114.768 | I27: 0.8746760967 | J27: 87.46760967 | K27: 82.54 | L27: 0 | M27: 0 | N27: 82.54 | O27: 0.7097840627 | P27: 70.97840627 | Q27: 100 | R27: 0 | S27: 0 | T27: 100 | U27: 0.8130081323 | V27: 81.30081323 | W27: 75.30848764 | X27: 25
A28: 26 | B28: 2021210579 | C28: 霍鑫鑫 | D28: 工艺学硕 | E28: 97.1 | F28: 0 | G28: 0 | H28: 97.1 | I28: 0.7400237783 | J28: 74.00237783 | K28: 86.555 | L28: 0 | M28: 0 | N28: 86.555 | O28: 0.7443101471 | P28: 74.43101471 | Q28: 100 | R28: 0 | S28: 0 | T28: 100 | U28: 0.8130081323 | V28: 81.30081323 | W28: 75.03226719 | X28: 26
A29: 27 | B29: 2021210629 | C29: 王耀 | D29: 工艺学硕 | E29: 100.288 | F29: 5 | G29: 0 | H29: 105.288 | I29: 0.8024266073 | J29: 80.24266073 | K29: 83.61873016 | L29: 0 | M29: 0 | N29: 83.61873016 | O29: 0.7190603587 | P29: 71.90603587 | Q29: 100 | R29: 0 | S29: 0 | T29: 100 | U29: 0.8130081323 | V29: 81.30081323 | W29: 74.51283858 | X29: 27
A30: 28 | B30: 2021210529 | C30: 王昊东 | D30: 工艺学硕 | E30: 97.1 | F30: 4 | G30: 0 | H30: 101.1 | I30: 0.7705087949 | J30: 77.05087949 | K30: 80.477 | L30: 4.083 | M30: 0 | N30: 84.56 | O30: 0.7271545958 | P30: 72.71545958 | Q30: 100 | R30: 0 | S30: 0 | T30: 100 | U30: 0.8130081323 | V30: 81.30081323 | W30: 74.44107893 | X30: 28
A31: 29 | B31: 2021210571 | C31: 杨捷 | D31: 工艺学硕 | E31: 101.1 | F31: 0 | G31: 0 | H31: 101.1 | I31: 0.7705087949 | J31: 77.05087949 | K31: 79.91801 | L31: 4.425 | M31: 0 | N31: 84.34301 | O31: 0.7252886394 | P31: 72.52886394 | Q31: 100 | R31: 0 | S31: 0 | T31: 100 | U31: 0.8130081323 | V31: 81.30081323 | W31: 74.31046198 | X31: 29
A32: 30 | B32: 2021210526 | C32: 张亚红 | D32: 工艺学硕 | E32: 101.1 | F32: 0 | G32: 0 | H32: 101.1 | I32: 0.7705087949 | J32: 77.05087949 | K32: 84.271 | L32: 0 | M32: 0 | N32: 84.271 | O32: 0.7246694057 | P32: 72.46694057 | Q32: 100 | R32: 0 | S32: 0 | T32: 100 | U32: 0.8130081323 | V32: 81.30081323 | W32: 74.26711562 | X32: 30
A33: 31 | B33: 2021210588 | C33: 李玉梅 | D33: 工艺学硕 | E33: 97.872 | F33: 5 | G33: 0 | H33: 102.872 | I33: 0.7840136573 | J33: 78.40136573 | K33: 81.9035294 | L33: 1.75 | M33: 0 | N33: 83.6535294 | O33: 0.7193596069 | P33: 71.93596069 | Q33: 100 | R33: 0 | S33: 0 | T33: 100 | U33: 0.8130081323 | V33: 81.30081323 | W33: 74.16552695 | X33: 31
A34: 32 | B34: 2021210589 | C34: 宋大山 | D34: 工艺学硕 | E34: 100.12 | F34: 3 | G34: 0 | H34: 103.12 | I34: 0.7859037283 | J34: 78.59037283 | K34: 82.2423529 | L34: 1.25 | M34: 0 | N34: 83.4923529 | O34: 0.7179736061 | P34: 71.79736061 | Q34: 100 | R34: 0 | S34: 0 | T34: 100 | U34: 0.8130081323 | V34: 81.30081323 | W34: 74.10630831 | X34: 32
A35: 33 | B35: 2021210509 | C35: 杨翰林 | D35: 工艺学硕 | E35: 96.4 | F35: 0 | G35: 0 | H35: 96.4 | I35: 0.7346889004 | J35: 73.46889004 | K35: 84.118 | L35: 0 | M35: 0 | N35: 84.118 | O35: 0.7233537168 | P35: 72.33537168 | Q35: 100 | R35: 0 | S35: 0 | T35: 100 | U35: 0.8130081323 | V35: 81.30081323 | W35: 73.45861951 | X35: 33
A36: 34 | B36: 2021210576 | C36: 翟霖晓 | D36: 工艺学硕 | E36: 97.6 | F36: 0 | G36: 0 | H36: 97.6 | I36: 0.7438344054 | J36: 74.38344054 | K36: 81.718819 | L36: 1 | M36: 0 | N36: 82.718819 | O36: 0.7113217762 | P36: 71.13217762 | Q36: 100 | R36: 0 | S36: 5 | T36: 105 | U36: 0.8536585389 | V36: 85.36585389 | W36: 73.20579783 | X36: 34
A37: 35 | B37: 2021210527 | C37: 祝庆 | D37: 工艺学硕 | E37: 97.6 | F37: 0 | G37: 0 | H37: 97.6 | I37: 0.7438344054 | J37: 74.38344054 | K37: 83.15555556 | L37: 0 | M37: 0 | N37: 83.15555556 | O37: 0.7150773935 | P37: 71.50773935 | Q37: 100 | R37: 0 | S37: 0 | T37: 100 | U37: 0.8130081323 | V37: 81.30081323 | W37: 73.06218697 | X37: 35
A38: 36 | B38: 2021210599 | C38: 白天瑜 | D38: 工艺学硕 | E38: 99.848 | F38: 3 | G38: 0 | H38: 102.848 | I38: 0.7838307472 | J38: 78.38307472 | K38: 81.20514706 | L38: 0 | M38: 0 | N38: 81.20514706 | O38: 0.6983052967 | P38: 69.83052967 | Q38: 100 | R38: 3.333333 | S38: 0 | T38: 103.333333 | U38: 0.8401084007 | V38: 84.01084007 | W38: 72.95906972 | X38: 36
A39: 37 | B39: 2021210530 | C39: 王檀 | D39: 工艺学硕 | E39: 99.1 | F39: 0 | G39: 0 | H39: 99.1 | I39: 0.7552662866 | J39: 75.52662866 | K39: 82.11277778 | L39: 0.375 | M39: 0 | N39: 82.48777778 | O39: 0.7093349895 | P39: 70.93349895 | Q39: 100 | R39: 0 | S39: 0 | T39: 100 | U39: 0.8130081323 | V39: 81.30081323 | W39: 72.88885632 | X39: 37
A40: 38 | B40: 2021210565 | C40: 朱家伟 | D40: 工艺学硕 | E40: 100.1 | F40: 0 | G40: 0 | H40: 100.1 | I40: 0.7628875408 | J40: 76.28875408 | K40: 81.950571 | L40: 0 | M40: 0 | N40: 81.950571 | O40: 0.7047154013 | P40: 70.47154013 | Q40: 100 | R40: 0 | S40: 0 | T40: 100 | U40: 0.8130081323 | V40: 81.30081323 | W40: 72.71791023 | X40: 38
A41: 39 | B41: 2021210584 | C41: 董朋阁 | D41: 工艺学硕 | E41: 96.176 | F41: 0.5 | G41: 0 | H41: 96.676 | I41: 0.7367923666 | J41: 73.67923666 | K41: 82.47529412 | L41: 0 | M41: 0 | N41: 82.47529412 | O41: 0.7092276391 | P41: 70.92276391 | Q41: 100 | R41: 0 | S41: 0 | T41: 100 | U41: 0.8130081323 | V41: 81.30081323 | W41: 72.51186339 | X41: 39
A42: 40 | B42: 2021210612 | C42: 魏萌 | D42: 工艺学硕 | E42: 97.092 | F42: 0 | G42: 0 | H42: 97.092 | I42: 0.7399628083 | J42: 73.99628083 | K42: 81.5145 | L42: 0 | M42: 0 | N42: 81.5145 | O42: 0.7009655074 | P42: 70.09655074 | Q42: 105.2666667 | R42: 0 | S42: 0 | T42: 105.2666667 | U42: 0.8558265606 | V42: 85.58265606 | W42: 72.42510729 | X42: 40
A43: 41 | B43: 2021210618 | C43: 张肖云 | D43: 工艺学硕 | E43: 108.484 | F43: 5 | G43: 0 | H43: 113.484 | I43: 0.8648904064 | J43: 86.48904064 | K43: 77.16625 | L43: 0 | M43: 0 | N43: 77.16625 | O43: 0.6635737149 | P43: 66.35737149 | Q43: 100 | R43: 3.333333 | S43: 0 | T43: 103.333333 | U43: 0.8401084007 | V43: 84.01084007 | W43: 72.14905218 | X43: 41
A44: 42 | B44: 2021210575 | C44: 徐文杰 | D44: 工艺学硕 | E44: 101.1 | F44: 0 | G44: 0 | H44: 101.1 | I44: 0.7705087949 | J44: 77.05087949 | K44: 80.362 | L44: 0.25 | M44: 0 | N44: 80.612 | O44: 0.6932046627 | P44: 69.32046627 | Q44: 100 | R44: 0 | S44: 0 | T44: 100 | U44: 0.8130081323 | V44: 81.30081323 | W44: 72.06458361 | X44: 42
A45: 43 | B45: 2021210557 | C45: 左都凤 | D45: 工艺学硕 | E45: 101.1 | F45: 0 | G45: 0 | H45: 101.1 | I45: 0.7705087949 | J45: 77.05087949 | K45: 80.1685 | L45: 0 | M45: 0 | N45: 80.1685 | O45: 0.6893908848 | P45: 68.93908848 | Q45: 100 | R45: 0 | S45: 0 | T45: 100 | U45: 0.8130081323 | V45: 81.30081323 | W45: 71.79761916 | X45: 43
A46: 44 | B46: 2021210520 | C46: 王丹丹 | D46: 工艺学硕 | E46: 105.1 | F46: 7.6 | G46: 0 | H46: 112.7 | I46: 0.8589153431 | J46: 85.89153431 | K46: 76.036 | L46: 0.25 | M46: 0 | N46: 76.286 | O46: 0.6560042041 | P46: 65.60042041 | Q46: 106.6666667 | R46: 0 | S46: 0 | T46: 106.6666667 | U46: 0.8672086744 | V46: 86.72086744 | W46: 71.77068789 | X46: 44
A47: 45 | B47: 2021210570 | C47: 廖逸飞 | D47: 工艺学硕 | E47: 103.7 | F47: 4 | G47: 0 | H47: 107.7 | I47: 0.8208090723 | J47: 82.08090723 | K47: 73.679 | L47: 4.425 | M47: 0 | N47: 78.104 | O47: 0.6716376839 | P47: 67.16376839 | Q47: 100 | R47: 0 | S47: 0 | T47: 100 | U47: 0.8130081323 | V47: 81.30081323 | W47: 71.56090064 | X47: 45
A48: 46 | B48: 2021210564 | C48: 芮阳 | D48: 工艺学硕 | E48: 97.1 | F48: 0 | G48: 0 | H48: 97.1 | I48: 0.7400237783 | J48: 74.00237783 | K48: 79.389412 | L48: 0 | M48: 0 | N48: 79.389412 | O48: 0.6826912937 | P48: 68.26912937 | Q48: 100 | R48: 0 | S48: 0 | T48: 100 | U48: 0.8130081323 | V48: 81.30081323 | W48: 70.71894745 | X48: 46
A49: 47 | B49: 2021210591 | C49: 张宸玮 | D49: 工艺学硕 | E49: 96.176 | F49: 0 | G49: 0 | H49: 96.176 | I49: 0.7329817395 | J49: 73.29817395 | K49: 79.51 | L49: 0 | M49: 0 | N49: 79.51 | O49: 0.6837282629 | P49: 68.37282629 | Q49: 100 | R49: 0 | S49: 0 | T49: 100 | U49: 0.8130081323 | V49: 81.30081323 | W49: 70.65069452 | X49: 47
A50: 48 | B50: 2021210556 | C50: 徐琪 | D50: 工艺学硕 | E50: 97.1 | F50: 0 | G50: 0 | H50: 97.1 | I50: 0.7400237783 | J50: 74.00237783 | K50: 79.24533333 | L50: 0 | M50: 0 | N50: 79.24533333 | O50: 0.6814523218 | P50: 68.14523218 | Q50: 100 | R50: 0 | S50: 0 | T50: 100 | U50: 0.8130081323 | V50: 81.30081323 | W50: 70.63221942 | X50: 48
A51: 49 | B51: 2021210617 | C51: 田乐斌 | D51: 工艺学硕 | E51: 120.008 | F51: 6.25 | G51: 0 | H51: 126.258 | I51: 0.9622443069 | J51: 96.22443069 | K51: 71.38235294 | L51: 0 | M51: 0 | N51: 71.38235294 | O51: 0.6138364002 | P51: 61.38364002 | Q51: 100 | R51: 0 | S51: 0 | T51: 100 | U51: 0.8130081323 | V51: 81.30081323 | W51: 70.34351548 | X51: 49
A52: 50 | B52: 2021210566 | C52: 陈奕苇 | D52: 工艺学硕 | E52: 97.4 | F52: 0 | G52: 0 | H52: 97.4 | I52: 0.7423101546 | J52: 74.23101546 | K52: 73.679446 | L52: 4.25 | M52: 0 | N52: 77.929446 | O52: 0.6701366463 | P52: 67.01366463 | Q52: 100 | R52: 0 | S52: 0 | T52: 100 | U52: 0.8130081323 | V52: 81.30081323 | W52: 69.88584965 | X52: 50
A53: 51 | B53: 2021210510 | C53: 韩肖宁 | D53: 工艺学硕 | E53: 98.1 | F53: 0 | G53: 0 | H53: 98.1 | I53: 0.7476450325 | J53: 74.76450325 | K53: 77.318 | L53: 0 | M53: 0 | N53: 77.318 | O53: 0.6648786547 | P53: 66.48786547 | Q53: 100 | R53: 0 | S53: 0 | T53: 100 | U53: 0.8130081323 | V53: 81.30081323 | W53: 69.6244878 | X53: 51
A54: 52 | B54: 2021210640 | C54: 姚荣鹏 | D54: 工艺学硕 | E54: 99.492 | F54: 3 | G54: 0 | H54: 102.492 | I54: 0.7811175807 | J54: 78.11175807 | K54: 71.7325 | L54: 0 | M54: 0 | N54: 71.7325 | O54: 0.6168474107 | P54: 61.68474107 | Q54: 100 | R54: 5 | T54: 105 | U54: 0.8536585389 | V54: 85.36585389 | W54: 67.33825575 | X54: 52

Sheet 工艺专硕
A1: 序号 | B1: 学号 | C1: 姓名 | D1: 方向 | E1: 德育成绩 | K1: 智育成绩 | Q1: 文体成绩 | W1: 总分 | X1: 排名
E2: 基础分 | F2: 奖励分 | G2: 惩罚分 | H2: 个人德育总分 | I2: 个人德育总分/基准 | J2: 德育总成绩 | K2: 基础分 | L2: 奖励分 | M2: 惩罚分 | N2: 个人智育总分 | O2: 个人智育总分/基准 | P2: 智育总成绩 | Q2: 基础分 | R2: 奖励分 | S2: 惩罚分 | T2: 个人文体总分 | U2: 个人文体总分/基准 | V2: 文体总成绩
A3: 1 | B3: 2021215334 | C3: 王梦 | D3: 工艺专硕 | E3: 97.08 | F3: 24.2 | G3: 0 | H3: 121.28 | I3: =H3/$H$3 -> 1 | J3: =100*I3 -> 100 | K3: 91.0143 | L3: 1.0000 | M3: 0 | N3: 92.01425 | O3: =N3/$N$3 -> 1 | P3: =O3*100 -> 100 | Q3: 100 | R3: 0 | S3: 0 | T3: 100 | U3: =T3/$T$6 -> 0.8143322476 | V3: =U3*100 -> 81.43322476 | W3: 98.14332248 | X3: 1
A4: 2 | B4: 2021215322 | C4: 穆亚鑫 | D4: 工艺专硕 | E4: 96.96 | F4: 10 | G4: 0 | H4: 106.96 | I4: =H4/$H$3 -> 0.8819261214 | J4: =100*I4 -> 88.19261214 | K4: 90.3440 | L4: 0.0000 | M4: 0 | N4: 90.344 | O4: =N4/$N$3 -> 0.9818479203 | P4: =O4*100 -> 98.18479203 | Q4: 100 | R4: 0 | S4: 0 | T4: 100 | U4: =T4/$T$6 -> 0.8143322476 | V4: =U4*100 -> 81.43322476 | W4: 94.51119932 | X4: 2
A5: 3 | B5: 2021215331 | C5: 王时雨 | D5: 工艺专硕 | E5: 96.94 | F5: 11 | G5: 0 | H5: 107.94 | I5: 0.8900065963 | J5: 89.00065963 | K5: 88.7436 | L5: 0.0000 | M5: 0 | N5: 88.743625 | O5: 0.9644552338 | P5: 96.44552338 | Q5: 100 | R5: 0 | S5: 0 | T5: 100 | U5: 0.8143322476 | V5: 81.43322476 | W5: 93.45532077 | X5: 3
A6: 4 | B6: 2021215353 | C6: 尹蓉蓉 | D6: 工艺专硕 | E6: 97.16 | F6: 11 | G6: 0 | H6: 108.16 | I6: 0.8918205805 | J6: 89.18205805 | K6: 84.3650 | L6: 1.5000 | M6: 0 | N6: 85.865 | O6: 0.9331706774 | P6: 93.31706774 | Q6: 100 | R6: 22.8 | S6: 0 | T6: 122.8 | U6: 1 | V6: 100 | W6: 93.15835903 | X6: 4
A7: 5 | B7: 2021215340 | C7: 王磊灏 | D7: 工艺专硕 | E7: 97.24 | F7: 19.9 | G7: 0 | H7: 117.14 | I7: 0.9658641161 | J7: 96.58641161 | K7: 85.4742 | L7: 0.0000 | M7: 0 | N7: 85.47416667 | O7: 0.9289231469 | P7: 92.89231469 | Q7: 100 | R7: 0 | S7: 0 | T7: 100 | U7: 0.8143322476 | V7: 81.43322476 | W7: 92.48522508 | X7: 5
A8: 6 | B8: 2021215348 | C8: 赵赛 | D8: 工艺专硕 | E8: 96.88 | F8: 5.5 | G8: 0 | H8: 102.38 | I8: 0.8441622691 | J8: 84.41622691 | K8: 88.6368 | L8: 0.0000 | M8: 0 | N8: 88.63679412 | O8: 0.9632942084 | P8: 96.32942084 | Q8: 100 | R8: 0 | S8: 0 | T8: 100 | U8: 0.8143322476 | V8: 81.43322476 | W8: 92.45716245 | X8: 6
A9: 7 | B9: 2021215366 | C9: 程佳婷 | D9: 工艺专硕 | E9: 96.74 | F9: 15.5 | G9: 0 | H9: 112.24 | I9: 0.9254617414 | J9: 92.54617414 | K9: 85.1267 | L9: 0.0000 | M9: 0 | N9: 85.12666667 | O9: 0.9251465579 | P9: 92.51465579 | Q9: 100 | R9: 0 | S9: 0 | T9: 100 | U9: 0.8143322476 | V9: 81.43322476 | W9: 91.41281636 | X9: 7
A10: 8 | B10: 2021215343 | C10: 王娣 | D10: 工艺专硕 | E10: 96.64 | F10: 6 | G10: 0 | H10: 102.64 | I10: 0.8463060686 | J10: 84.63060686 | K10: 86.8624 | L10: 0.0000 | M10: 0 | N10: 86.86235294 | O10: 0.9440097913 | P10: 94.40097913 | Q10: 100 | R10: 0 | S10: 0 | T10: 100 | U10: 0.8143322476 | V10: 81.43322476 | W10: 91.15012924 | X10: 8
A11: 9 | B11: 2021215368 | C11: 刘旭 | D11: 工艺专硕 | E11: 96.72 | F11: 17.5 | G11: 0 | H11: 114.22 | I11: 0.9417875989 | J11: 94.17875989 | K11: 83.7319 | L11: 0.5556 | M11: 0 | N11: 84.28743056 | O11: 0.916025839 | P11: 91.6025839 | Q11: 100 | R11: 0 | S11: 0 | T11: 100 | U11: 0.8143322476 | V11: 81.43322476 | W11: 91.10088318 | X11: 9
A12: 10 | B12: 2021215321 | C12: 李永强 | D12: 工艺专硕 | E12: 96.82 | F12: 1.5 | G12: 0 | H12: 98.32 | I12: 0.8106860158 | J12: 81.06860158 | K12: 87.7057 | L12: 0.0000 | M12: 0 | N12: 87.70573529 | O12: 0.9531755711 | P12: 95.31755711 | Q12: 100 | R12: 0 | S12: 0 | T12: 100 | U12: 0.8143322476 | V12: 81.43322476 | W12: 91.07933277 | X12: 10
A13: 11 | B13: 2021215336 | C13: 李长永 | D13: 工艺专硕 | E13: 96.7 | F13: 0 | G13: 0 | H13: 96.7 | I13: 0.797328496 | J13: 79.7328496 | K13: 86.2334 | L13: 0.0000 | M13: 0 | N13: 86.2334 | O13: 0.9371744051 | P13: 93.71744051 | Q13: 100 | R13: 0 | S13: 0 | T13: 100 | U13: 0.8143322476 | V13: 81.43322476 | W13: 89.69210075 | X13: 11
A14: 12 | B14: 2021215305 | C14: 王涛 | D14: 工艺专硕 | E14: 96.92 | F14: 12 | G14: 0 | H14: 108.92 | I14: 0.8980870712 | J14: 89.80870712 | K14: 83.1376 | L14: 0.0000 | M14: 0 | N14: 83.13764706 | O14: 0.9035301278 | P14: 90.35301278 | Q14: 100 | R14: 0 | S14: 0 | T14: 100 | U14: 0.8143322476 | V14: 81.43322476 | W14: 89.35217284 | X14: 12
A15: 13 | B15: 2021215332 | C15: 苑显龙 | D15: 工艺专硕 | E15: 96.94 | F15: 4 | G15: 0 | H15: 100.94 | I15: 0.8322889182 | J15: 83.22889182 | K15: 84.6253 | L15: 0.0000 | M15: 0 | N15: 84.62526316 | O15: 0.9196973638 | P15: 91.96973638 | Q15: 100 | R15: 0 | S15: 0 | T15: 100 | U15: 0.8143322476 | V15: 81.43322476 | W15: 89.16791631 | X15: 13
A16: 14 | B16: 2021215367 | C16: 李明杰 | D16: 工艺专硕 | E16: 96.9 | F16: 11.25 | G16: 0 | H16: 108.15 | I16: 0.8917381266 | J16: 89.17381266 | K16: 80.4111 | L16: 2.5556 | M16: 0 | N16: 82.96660819 | O16: 0.9016712975 | P16: 90.16712975 | Q16: 100 | R16: 0 | S16: 0 | T16: 100 | U16: 0.8143322476 | V16: 81.43322476 | W16: 89.09507583 | X16: 14
A17: 15 | B17: 2021215337 | C17: 李汝振 | D17: 工艺专硕 | E17: 97.1 | F17: 9.2 | G17: 0 | H17: 106.3 | I17: 0.8764841689 | J17: 87.64841689 | K17: 83.1856 | L17: 0.0000 | M17: 0 | N17: 83.18555556 | O17: 0.9040507916 | P17: 90.40507916 | Q17: 100 | R17: 0 | S17: 0 | T17: 100 | U17: 0.8143322476 | V17: 81.43322476 | W17: 88.95656127 | X17: 15
A18: 16 | B18: 2021215356 | C18: 张旭 | D18: 工艺专硕 | E18: 96.94 | F18: 0 | G18: 0 | H18: 96.94 | I18: 0.7993073879 | J18: 79.93073879 | K18: 84.6438 | L18: 0.0000 | M18: 0 | N18: 84.64380952 | O18: 0.9198989235 | P18: 91.98989235 | Q18: 100 | R18: 0 | S18: 0 | T18: 100 | U18: 0.8143322476 | V18: 81.43322476 | W18: 88.52239488 | X18: 16
A19: 17 | B19: 2021215352 | C19: 江志虎 | D19: 工艺专硕 | E19: 97 | F19: 4.5 | G19: 0 | H19: 101.5 | I19: 0.8369063325 | J19: 83.69063325 | K19: 81.9759 | L19: 0.0000 | M19: 0 | N19: 81.97588235 | O19: 0.8909042062 | P19: 89.09042062 | Q19: 100 | R19: 0 | S19: 0 | T19: 100 | U19: 0.8143322476 | V19: 81.43322476 | W19: 87.24474356 | X19: 17
A20: 18 | B20: 2021215344 | C20: 周琳睿 | D20: 工艺专硕 | E20: 96.8 | F20: 0 | G20: 0 | H20: 96.8 | I20: 0.7981530343 | J20: 79.81530343 | K20: 82.8083 | L20: 0.0000 | M20: 0 | N20: 82.80833333 | O20: 0.8999511851 | P20: 89.99511851 | Q20: 100 | R20: 0 | S20: 0 | T20: 100 | U20: 0.8143322476 | V20: 81.43322476 | W20: 87.10296612 | X20: 18
A21: 19 | B21: 2021215365 | C21: 王琪 | D21: 工艺专硕 | E21: 96.84 | F21: 6.5 | G21: 0 | H21: 103.34 | I21: 0.8520778364 | J21: 85.20778364 | K21: 81.1650 | L21: 0.0000 | M21: 0 | N21: 81.165 | O21: 0.8820916325 | P21: 88.20916325 | Q21: 100 | R21: 0 | S21: 0 | T21: 100 | U21: 0.8143322476 | V21: 81.43322476 | W21: 86.93129348 | X21: 19
A22: 20 | B22: 2021215355 | C22: 郭佳鹏 | D22: 工艺专硕 | E22: 97.04 | F22: 0 | G22: 0 | H22: 97.04 | I22: 0.8001319261 | J22: 80.01319261 | K22: 82.2956 | L22: 0.0000 | M22: 0 | N22: 82.29563492 | O22: 0.8943792393 | P22: 89.43792393 | Q22: 100 | R22: 0 | S22: 0 | T22: 100 | U22: 0.8143322476 | V22: 81.43322476 | W22: 86.75250775 | X22: 20
A23: 21 | B23: 2021215309 | C23: 刘永高 | D23: 工艺专硕 | E23: 96.8 | F23: 0 | G23: 0 | H23: 96.8 | I23: 0.7981530343 | J23: 79.81530343 | K23: 82.3242 | L23: 0.0000 | M23: 0 | N23: 82.32421053 | O23: 0.8946897956 | P23: 89.46897956 | Q23: 100 | R23: 0 | S23: 0 | T23: 100 | U23: 0.8143322476 | V23: 81.43322476 | W23: 86.73466885 | X23: 21
A24: 22 | B24: 2021215335 | C24: 陈胜超 | D24: 工艺专硕 | E24: 96.94 | F24: 0.5 | G24: 0 | H24: 97.44 | I24: 0.8034300792 | J24: 80.34300792 | K24: 82.0393 | L24: 0.0000 | M24: 0 | N24: 82.03926136 | O24: 0.8915930018 | P24: 89.15930018 | Q24: 100 | R24: 0 | S24: 0 | T24: 100 | U24: 0.8143322476 | V24: 81.43322476 | W24: 86.62343418 | X24: 22
A25: 23 | B25: 2021215377 | C25: 张继德 | D25: 工艺专硕 | E25: 97.22 | F25: 22 | G25: 0 | H25: 119.22 | I25: 0.9830145119 | J25: 98.30145119 | K25: 76.3624 | L25: 0.0000 | M25: 0 | N25: 76.36238235 | O25: 0.8298973513 | P25: 82.98973513 | Q25: 100 | R25: 0 | S25: 0 | T25: 100 | U25: 0.8143322476 | V25: 81.43322476 | W25: 85.8964273 | X25: 23
A26: 24 | B26: 2021215372 | C26: 宋良宇 | D26: 工艺专硕 | E26: 97 | F26: 3 | G26: 0 | H26: 100 | I26: 0.8245382586 | J26: 82.45382586 | K26: 80.4888 | L26: 0.0000 | M26: 0 | N26: 80.48875 | O26: 0.8747422274 | P26: 87.47422274 | Q26: 100 | R26: 0 | S26: 0 | T26: 100 | U26: 0.8143322476 | V26: 81.43322476 | W26: 85.86604357 | X26: 24
A27: 25 | B27: 2021215314 | C27: 熊传煌 | D27: 工艺专硕 | E27: 96.48 | F27: 1 | G27: 0 | H27: 97.48 | I27: 0.8037598945 | J27: 80.37598945 | K27: 80.6000 | L27: 0.0000 | M27: 0 | N27: 80.6 | O27: 0.8759512793 | P27: 87.59512793 | Q27: 100 | R27: 0 | S27: 0 | T27: 100 | U27: 0.8143322476 | V27: 81.43322476 | W27: 85.53510991 | X27: 25
A28: 26 | B28: 2021215317 | C28: 颜晓航 | D28: 工艺专硕 | E28: 96.72 | F28: 6 | G28: 0 | H28: 102.72 | I28: 0.8469656992 | J28: 84.69656992 | K28: 78.9269 | L28: 0.0000 | M28: 0 | N28: 78.92691176 | O28: 0.857768354 | P28: 85.7768354 | Q28: 100 | R28: 0 | S28: 0 | T28: 100 | U28: 0.8143322476 | V28: 81.43322476 | W28: 85.12642124 | X28: 26
A29: 27 | B29: 2021215304 | C29: 宋艳新 | D29: 工艺专硕 | E29: 96.6 | F29: 7 | G29: 0 | H29: 103.6 | I29: 0.8542216359 | J29: 85.42216359 | K29: 78.3004 | L29: 0.0000 | M29: 0 | N29: 78.30039216 | O29: 0.8509594129 | P29: 85.09594129 | Q29: 100 | R29: 0 | S29: 0 | T29: 100 | U29: 0.8143322476 | V29: 81.43322476 | W29: 84.7949141 | X29: 27
A30: 28 | B30: 2021215378 | C30: 陈霆甲 | D30: 工艺专硕 | E30: 97.18 | F30: 8 | G30: 0 | H30: 105.18 | I30: 0.8672493404 | J30: 86.72493404 | K30: 77.4229 | L30: 0.0000 | M30: 0 | N30: 77.42285714 | O30: 0.841422466 | P30: 84.1422466 | Q30: 100 | R30: 0 | S30: 0 | T30: 100 | U30: 0.8143322476 | V30: 81.43322476 | W30: 84.3878819 | X30: 28
A31: 29 | B31: 2021215364 | C31: 杜吉超 | D31: 工艺专硕 | E31: 96.84 | F31: 3 | G31: 0 | H31: 99.84 | I31: 0.8232189974 | J31: 82.32189974 | K31: 77.8785 | L31: 0.0000 | M31: 0 | N31: 77.8785 | O31: 0.8463743388 | P31: 84.63743388 | Q31: 100 | R31: 0 | S31: 0 | T31: 100 | U31: 0.8143322476 | V31: 81.43322476 | W31: 83.85390614 | X31: 29
A32: 30 | B32: 2021215351 | C32: 张蓝仪 | D32: 工艺专硕 | E32: 96.82 | F32: 1.5 | G32: 0 | H32: 98.32 | I32: 0.8106860158 | J32: 81.06860158 | K32: 77.1522 | L32: 0.7500 | M32: 0 | N32: 77.90220588 | O32: 0.8466319715 | P32: 84.66319715 | Q32: 100 | R32: 0 | S32: 0 | T32: 100 | U32: 0.8143322476 | V32: 81.43322476 | W32: 83.6212808 | X32: 30
A33: 31 | B33: 2021215379 | C33: 孙晓旭 | D33: 工艺专硕 | E33: 97.3 | F33: 8 | G33: 0 | H33: 105.3 | I33: 0.8682387863 | J33: 86.82387863 | K33: 75.9431 | L33: 0.0000 | M33: 0 | N33: 75.94310924 | O33: 0.8253407406 | P33: 82.53407406 | Q33: 100 | R33: 0 | S33: 0 | T33: 100 | U33: 0.8143322476 | V33: 81.43322476 | W33: 83.28195005 | X33: 31
A34: 32 | B34: 2021215338 | C34: 马延明 | D34: 工艺专硕 | E34: 96.56 | F34: 8 | G34: 0 | H34: 104.56 | I34: 0.8621372032 | J34: 86.21372032 | K34: 76.1011 | L34: 0.0000 | M34: 0 | N34: 76.10111111 | O34: 0.8270578863 | P34: 82.70578863 | Q34: 100 | R34: 0 | S34: 0 | T34: 100 | U34: 0.8143322476 | V34: 81.43322476 | W34: 83.28011858 | X34: 32
A35: 33 | B35: 2021215376 | C35: 杨川 | D35: 工艺专硕 | E35: 96.84 | F35: 6 | G35: 0 | H35: 102.84 | I35: 0.8479551451 | J35: 84.79551451 | K35: 75.2219 | L35: 0.0000 | M35: 0 | N35: 75.22191176 | O35: 0.8175028516 | P35: 81.75028516 | Q35: 100 | R35: 0 | S35: 0 | T35: 100 | U35: 0.8143322476 | V35: 81.43322476 | W35: 82.32762499 | X35: 33
A36: 34 | B36: 2021215310 | C36: 任晓聪 | D36: 工艺专硕 | E36: 96.94 | F36: 0 | G36: 0 | H36: 96.94 | I36: 0.7993073879 | J36: 79.93073879 | K36: 74.9302 | L36: 0.0000 | M36: 0 | N36: 74.93017647 | O36: 0.8143323069 | P36: 81.43323069 | Q36: 100 | R36: 11.33333333 | S36: 0 | T36: 111.3333333 | U36: 0.9066232356 | V36: 90.66232356 | W36: 82.0556416 | X36: 34

Sheet 工程学硕
A1: 序号 | B1: 学号 | C1: 姓名 | D1: 方向 | E1: 德育成绩 | K1: 智育成绩 | Q1: 文体成绩 | W1: 总分 | X1: 排名
E2: 基准分 | F2: 奖励分 | G2: 惩罚分 | H2: 个人德育总分 | I2: 个人德育/基准 | J2: 德育总成绩 | K2: 基础分 | L2: 奖励分 | M2: 惩罚分 | N2: 个人智育总分 | O2: 个人智育总分/基准 | P2: 智育总成绩 | Q2: 基准分 | R2: 奖励分 | S2: 惩罚分 | T2: 个人文体总分 | U2: 个人文体总分/基准 | V2: 文体总成绩
A3: 1 | B3: 2021210521 | C3: 贾晓浩 | D3: 工程学硕 | E3: 102.3372093 | F3: 13 | G3: 0 | H3: 115.3372093 | I3: 0.9034026741 | J3: 90.34026741 | K3: 100.5370588 | L3: 33.5 | M3: 0 | N3: 134.0370588 | O3: 1 | P3: 100 | Q3: 100 | R3: 0 | S3: 0 | T3: 100 | U3: 0.8135306416 | V3: 81.353726 | W3: 96.20342608 | X3: 1
A4: 2 | B4: 2021210598 | C4: 朱悦 | D4: 工程学硕 | E4: 106.3697674 | F4: 21.3 | G4: 0 | H4: 127.6697674 | I4: 1 | J4: 100 | K4: 90.58611111 | L4: 1 | M4: 0 | N4: 91.58611111 | O4: 0.6832894717 | P4: 68.32894717 | Q4: 100 | R4: 0 | S4: 0 | T4: 100 | U4: 0.8135306416 | V4: 81.353726 | W4: 75.96563562 | X4: 2
A5: 3 | B5: 2021210553 | C5: 李梦 | D5: 工程学硕 | E5: 105.755814 | F5: 5 | G5: 0 | H5: 110.755814 | I5: 0.8675179424 | J5: 86.75179424 | K5: 91.44789474 | L5: 3 | M5: 0 | N5: 94.44789474 | O5: 0.7046401612 | P5: 70.46401612 | Q5: 102 | R5: 0 | S5: 0 | T5: 102 | U5: 0.8298012545 | V5: 82.98080052 | W5: 74.97325019 | X5: 3
A6: 4 | B6: 2021210636 | C6: 苏涧雯 | D6: 工程学硕 | E6: 105.9023256 | F6: 16 | G6: 0 | H6: 121.9023256 | I6: 0.9548253124 | J6: 95.48253124 | K6: 89.22 | L6: 0 | M6: 0 | N6: 89.22 | O6: 0.6656368081 | P6: 66.56368081 | Q6: 100 | R6: 0 | S6: 0 | T6: 100 | U6: 0.8135306416 | V6: 81.353726 | W6: 73.82645542 | X6: 4
A7: 5 | B7: 2021210501 | C7: 宫汝景 | D7: 工程学硕 | E7: 98.3372093 | F7: 5 | G7: 0 | H7: 103.3372093 | I7: 0.8094101789 | J7: 80.94101789 | K7: 93.80130435 | L7: 0.375 | M7: 0 | N7: 94.17630435 | O7: 0.7026139276 | P7: 70.26139276 | Q7: 100 | R7: 0 | S7: 0 | T7: 100 | U7: 0.8135306416 | V7: 81.353726 | W7: 73.50655111 | X7: 5
A8: 6 | B8: 2021210635 | C8: 黄丁丁 | D8: 工程学硕 | E8: 108.8372093 | F8: 5 | G8: 0 | H8: 113.8372093 | I8: 0.8916536122 | J8: 89.16536122 | K8: 89.9875 | L8: 0 | M8: 0 | N8: 89.9875 | O8: 0.6713628365 | P8: 67.13628365 | Q8: 100 | R8: 0 | S8: 0 | T8: 100 | U8: 0.8135306416 | V8: 81.353726 | W8: 72.9638434 | X8: 6
A9: 7 | B9: 2021210508 | C9: 王明 | D9: 工程学硕 | E9: 100.1255814 | F9: 0 | G9: 0 | H9: 100.1255814 | I9: 0.7842544355 | J9: 78.42544355 | K9: 91.270625 | L9: 0 | M9: 0 | N9: 91.270625 | O9: 0.6809357487 | P9: 68.09357487 | Q9: 100 | R9: 0 | S9: 0 | T9: 100 | U9: 0.8135306416 | V9: 81.353726 | W9: 71.48596372 | X9: 7
A10: 8 | B10: 2021210539 | C10: 田雪铭 | D10: 工程学硕 | E10: 102.3209302 | F10: 4 | G10: 0 | H10: 106.3209302 | I10: 0.8327807935 | J10: 83.27807935 | K10: 89.21411765 | L10: 0 | M10: 0 | N10: 89.21411765 | O10: 0.6655929221 | P10: 66.55929221 | Q10: 100 | R10: 0 | S10: 0 | T10: 100 | U10: 0.8135306416 | V10: 81.353726 | W10: 71.38249302 | X10: 8
A11: 9 | B11: 2021210605 | C11: 杜洋 | D11: 工程学硕 | E11: 103.9186047 | F11: 6 | G11: 0 | H11: 109.9186047 | I11: 0.8609603264 | J11: 86.09603264 | K11: 87.58611111 | L11: 0 | M11: 0 | N11: 87.58611111 | O11: 0.6534469786 | P11: 65.34469786 | Q11: 100 | R11: 0 | S11: 0 | T11: 100 | U11: 0.8135306416 | V11: 81.353726 | W11: 71.09586763 | X11: 9
A12: 10 | B12: 2021210545 | C12: 王雅靖 | D12: 工程学硕 | E12: 102.0697674 | F12: 5 | G12: 0 | H12: 107.0697674 | I12: 0.8386462166 | J12: 83.86462166 | K12: 87.71 | L12: 0.68 | M12: 0 | N12: 88.39 | O12: 0.6594444908 | P12: 65.94444908 | Q12: 100 | R12: 0 | S12: 0 | T12: 100 | U12: 0.8135306416 | V12: 81.353726 | W12: 71.06941129 | X12: 10
A13: 11 | B13: 2021210540 | C13: 王国虎 | D13: 工程学硕 | E13: 106.8709302 | F13: 6.6 | G13: 0 | H13: 113.4709302 | I13: 0.8887846552 | J13: 88.87846552 | K13: 86.17736842 | L13: 0 | M13: 0 | N13: 86.17736842 | O13: 0.6429368801 | P13: 64.29368801 | Q13: 100 | R13: 0 | S13: 0 | T13: 100 | U13: 0.8135306416 | V13: 81.353726 | W13: 70.91664731 | X13: 11
A14: 12 | B14: 2021210516 | C14: 石硕 | D14: 工程学硕 | E14: 101.2395349 | F14: 6 | G14: 0 | H14: 107.2395349 | I14: 0.8399759554 | J14: 83.99759554 | K14: 86.1844 | L14: 1 | M14: 0 | N14: 87.1844 | O14: 0.6504499634 | P14: 65.04499634 | Q14: 100 | R14: 0 | S14: 0 | T14: 100 | U14: 0.8135306416 | V14: 81.353726 | W14: 70.46638914 | X14: 12
A15: 13 | B15: 2021210522 | C15: 孟祥宇 | D15: 工程学硕 | E15: 100.955814 | F15: 3 | G15: 0 | H15: 103.955814 | I15: 0.8142555284 | J15: 81.42555284 | K15: 80.54375 | L15: 7.2 | M15: 0 | N15: 87.74375 | O15: 0.654623063 | P15: 65.4623063 | Q15: 100 | R15: 0 | S15: 0 | T15: 100 | U15: 0.8135306416 | V15: 81.353726 | W15: 70.24409758 | X15: 13
A16: 14 | B16: 2021210533 | C16: 王浩然 | D16: 工程学硕 | E16: 106.2232558 | F16: 9 | G16: 0 | H16: 115.2232558 | I16: 0.9025101097 | J16: 90.25101097 | K16: 84.08888889 | L16: 0 | M16: 0 | N16: 84.08888889 | O16: 0.6273555211 | P16: 62.73555211 | Q16: 100 | R16: 0 | S16: 0 | T16: 100 | U16: 0.8135306416 | V16: 81.353726 | W16: 70.10046127 | X16: 14
A17: 15 | B17: 2021210507 | C17: 潘惠媛 | D17: 工程学硕 | E17: 99.82093023 | F17: 4 | G17: 0 | H17: 103.8209302 | I17: 0.8131990237 | J17: 81.31990237 | K17: 87.438 | L17: 0 | M17: 0 | N17: 87.438 | O17: 0.6523419774 | P17: 65.23419774 | Q17: 100 | R17: 0 | S17: 0 | T17: 100 | U17: 0.8135306416 | V17: 81.353726 | W17: 70.06329149 | X17: 15
A18: 16 | B18: 2021210587 | C18: 张辉 | D18: 工程学硕 | E18: 98.15813953 | F18: 0 | G18: 0 | H18: 98.15813953 | I18: 0.768844038 | J18: 76.8844038 | K18: 88.51470588 | L18: 0 | M18: 0 | N18: 88.51470588 | O18: 0.6603748744 | P18: 66.03748744 | Q18: 100 | R18: 0 | S18: 0 | T18: 100 | U18: 0.8135306416 | V18: 81.353726 | W18: 69.73849457 | X18: 16
A19: 17 | B19: 2021210606 | C19: 汤梦蝶 | D19: 工程学硕 | E19: 99.85348837 | F19: 2.5 | G19: 0 | H19: 102.3534884 | I19: 0.8017049802 | J19: 80.17049802 | K19: 86.85555556 | L19: 0 | M19: 0 | N19: 86.85555556 | O19: 0.6479965789 | P19: 64.79965789 | Q19: 102 | R19: 0 | S19: 0 | T19: 102 | U19: 0.8298012545 | V19: 82.98080052 | W19: 69.69194018 | X19: 17
A20: 18 | B20: 2021210615 | C20: 阴慧敏 | D20: 工程学硕 | E20: 98.82093023 | F20: 2 | G20: 0 | H20: 100.8209302 | I20: 0.7897008999 | J20: 78.97008999 | K20: 85.89888889 | L20: 1 | M20: 0 | N20: 86.89888889 | O20: 0.6483198725 | P20: 64.83198725 | Q20: 102 | R20: 0 | S20: 0 | T20: 102 | U20: 0.8298012545 | V20: 82.98080052 | W20: 69.47448913 | X20: 18
A21: 19 | B21: 2021210595 | C21: 李孟原 | D21: 工程学硕 | E21: 98.25581395 | F21: 9 | G21: 0 | H21: 107.255814 | I21: 0.8401034646 | J21: 84.01034646 | K21: 81.988125 | L21: 2.5 | M21: 0 | N21: 84.488125 | O21: 0.6303340714 | P21: 63.03340714 | Q21: 100 | R21: 0 | S21: 0 | T21: 100 | U21: 0.8135306416 | V21: 81.353726 | W21: 69.06082689 | X21: 19
A22: 20 | B22: 2021210623 | C22: 万自杰 | D22: 工程学硕 | E22: 98.27209302 | F22: 0 | G22: 0 | H22: 98.27209302 | I22: 0.7697366024 | J22: 76.97366024 | K22: 83.55 | L22: 0 | M22: 0 | N22: 83.55 | O22: 0.6233350742 | P22: 62.33350742 | Q22: 106.6666667 | R22: 7.92 | S22: 0 | T22: 114.5866667 | U22: 0.9321976446 | V22: 93.22052283 | W22: 68.35023952 | X22: 20
A23: 21 | B23: 2021210552 | C23: 张琳怡 | D23: 工程学硕 | E23: 99.35348837 | F23: 2 | G23: 0 | H23: 101.3534884 | I23: 0.7938722722 | J23: 79.38722722 | K23: 83.06752941 | L23: 0.75 | M23: 0 | N23: 83.81752941 | O23: 0.6253310103 | P23: 62.53310103 | Q23: 100 | R23: 6.6 | S23: 0 | T23: 106.6 | U23: 0.867223664 | V23: 86.72307192 | W23: 68.32292336 | X23: 21
A24: 22 | B24: 2021210554 | C24: 王飞 | D24: 工程学硕 | E24: 102.272093 | F24: 0 | G24: 0 | H24: 102.272093 | I24: 0.8010674342 | J24: 80.10674342 | K24: 84.45094737 | L24: 0 | M24: 0 | N24: 84.45094737 | O24: 0.6300567031 | P24: 63.00567031 | Q24: 100 | R24: 0 | S24: 0 | T24: 100 | U24: 0.8135306416 | V24: 81.353726 | W24: 68.2606905 | X24: 22
A25: 23 | B25: 2021210515 | C25: 池宇 | D25: 工程学硕 | E25: 100.8881395 | F25: 3 | G25: 0 | H25: 103.8881395 | I25: 0.8137254545 | J25: 81.37254545 | K25: 83.2509 | L25: 0 | M25: 0 | N25: 83.2509 | O25: 0.6211036017 | P25: 62.11036017 | Q25: 100 | R25: 0 | S25: 0 | T25: 100 | U25: 0.8135306416 | V25: 81.353726 | W25: 67.88713381 | X25: 23
A26: 24 | B26: 2021210534 | C26: 徐新勇 | D26: 工程学硕 | E26: 98.23953488 | F26: 0 | G26: 0 | H26: 98.23953488 | I26: 0.769481584 | J26: 76.9481584 | K26: 76.86888889 | L26: 6.25 | M26: 0 | N26: 83.11888889 | O26: 0.6201187166 | P26: 62.01187166 | Q26: 100 | R26: 0 | S26: 0 | T26: 100 | U26: 0.8135306416 | V26: 81.353726 | W26: 66.93331444 | X26: 24
A27: 25 | B27: 2021210613 | C27: 刘文瑞 | D27: 工程学硕 | E27: 102.9097674 | F27: 4.6 | G27: 0 | H27: 107.5097674 | I27: 0.8420926081 | J27: 84.20926081 | K27: 79.40433333 | L27: 0 | M27: 0 | N27: 79.40433333 | O27: 0.592405817 | P27: 59.2405817 | Q27: 100 | R27: 0 | S27: 0 | T27: 100 | U27: 0.8135306416 | V27: 81.353726 | W27: 66.44563195 | X27: 25
A28: 26 | B28: 2021210642 | C28: 许怀宇 | D28: 工程学硕 | E28: 95.82093023 | F28: 1 | G28: 0 | H28: 96.82093023 | I28: 0.7583700681 | J28: 75.83700681 | K28: 82.48 | L28: 0 | M28: 0 | N28: 82.48 | O28: 0.6153522073 | P28: 61.53522073 | Q28: 100 | R28: 0 | S28: 0 | T28: 100 | U28: 0.8135306416 | V28: 81.353726 | W28: 66.37742847 | X28: 26
A29: 27 | B29: 2021210551 | C29: 徐万里 | D29: 工程学硕 | E29: 98.22325581 | F29: 0 | G29: 0 | H29: 98.22325581 | I29: 0.7693540748 | J29: 76.93540748 | K29: 81.58933333 | L29: 0 | M29: 0 | N29: 81.58933333 | O29: 0.6087072788 | P29: 60.87072788 | Q29: 100 | R29: 0 | S29: 0 | T29: 100 | U29: 0.8135306416 | V29: 81.353726 | W29: 66.13196361 | X29: 27
A30: 28 | B30: 2021210583 | C30: 罗嘉 | D30: 工程学硕 | E30: 98.32093023 | F30: 1 | G30: 0 | H30: 99.32093023 | I30: 0.777951838 | J30: 77.7951838 | K30: 77.05666667 | L30: 0.56 | M30: 0 | N30: 77.61666667 | O30: 0.5790687094 | P30: 57.90687094 | Q30: 115 | R30: 7.92 | S30: 0 | T30: 122.92 | U30: 0.9999918647 | V30: 100 | W30: 66.09384642 | X30: 28
A31: 29 | B31: 2021210641 | C31: 刘浪 | D31: 工程学硕 | E31: 97.20697674 | F31: 6 | G31: 0 | H31: 103.2069767 | I31: 0.8083901053 | J31: 80.83901053 | K31: 79.03882353 | L31: 0 | M31: 0 | N31: 79.03882353 | O31: 0.589678886 | P31: 58.9678886 | Q31: 100 | R31: 0 | S31: 0 | T31: 100 | U31: 0.8135306416 | V31: 81.353726 | W31: 65.58069673 | X31: 29
A32: 30 | B32: 2021210624 | C32: 范程宇 | D32: 工程学硕 | E32: 98.27209302 | F32: 0 | G32: 0 | H32: 98.27209302 | I32: 0.7697366024 | J32: 76.97366024 | K32: 77.10625 | L32: 0 | M32: 0 | N32: 77.10625 | O32: 0.575260683 | P32: 57.5260683 | Q32: 100 | R32: 0 | S32: 0 | T32: 100 | U32: 0.8135306416 | V32: 81.353726 | W32: 63.79835246 | X32: 30
A33: 31 | B33: 2021210544 | C33: 卢智宇 | D33: 工程学硕 | E33: 98.28837209 | F33: 0 | G33: 0 | H33: 98.28837209 | I33: 0.7698641116 | J33: 76.98641116 | K33: 76.97058824 | L33: 0 | M33: 0 | N33: 76.97058824 | O33: 0.5742485617 | P33: 57.42485617 | Q33: 100 | R33: 0 | S33: 0 | T33: 100 | U33: 0.8135306416 | V33: 81.353726 | W33: 63.73005415 | X33: 31
A34: 32 | B34: 2021210581 | C34: 李龙静 | D34: 工程学硕 | E34: 98.36976744 | F34: 0 | G34: 0 | H34: 98.36976744 | I34: 0.7705016576 | J34: 77.05016576 | K34: 76.26388889 | L34: 0 | M34: 0 | N34: 76.26388889 | O34: 0.5689761441 | P34: 56.89761441 | Q34: 100 | R34: 0 | S34: 0 | T34: 100 | U34: 0.8135306416 | V34: 81.353726 | W34: 63.37373584 | X34: 32
A35: 33 | B35: 2021210614 | C35: 王栋栋 | D35: 工程学硕 | E35: 98.27209302 | F35: 0 | G35: 0 | H35: 98.27209302 | I35: 0.7697366024 | J35: 76.97366024 | K35: 75.932375 | L35: 0 | M35: 0 | N35: 75.932375 | O35: 0.5665028438 | P35: 56.65028438 | Q35: 100 | R35: 0 | S35: 0 | T35: 100 | U35: 0.8135306416 | V35: 81.353726 | W35: 63.18530372 | X35: 33
A36: 34 | B36: 2021210502 | C36: 蒋泽龙 | D36: 工程学硕 | E36: 98.36976744 | F36: 0 | G36: 0 | H36: 98.36976744 | I36: 0.7705016576 | J36: 77.05016576 | K36: 71.6585 | L36: 0 | M36: 0 | N36: 71.6585 | O36: 0.5346170726 | P36: 53.46170726 | Q36: 100 | R36: 0 | S36: 0 | T36: 100 | U36: 0.8135306416 | V36: 81.353726 | W36: 60.96860083 | X36: 34

Sheet 工程专硕
A1: 序号 | B1: 学号 | C1: 姓名 | D1: 方向 | E1: 德育成绩 | K1: 智育成绩 | Q1: 文体成绩 | W1: 总分 | X1: 排名
E2: 基础分 | F2: 奖励分 | G2: 惩罚分 | H2: 个人德育总分 | I2: 个人德育总分/基准 | J2: 德育总成绩 | K2: 基础分 | L2: 奖励分 | M2: 惩罚分 | N2: 个人智育总分 | O2: 个人智育总分/基准 | P2: 智育总成绩 | Q2: 基本分 | R2: 奖励分 | S2: 惩罚分 | T2: 个人文体总分 | U2: 个人文体总分/基准 | V2: 文体总成绩
A3: 1 | B3: 2021215308 | C3: 赵晓晴 | D3: 工程专硕 | E3: 97.98780488 | F3: 13.71111111 | G3: 0 | H3: 111.698916 | I3: 1 | J3: 100 | K3: 90.73611 | L3: 1 | M3: 0 | N3: 91.73611 | O3: 1 | P3: 100 | Q3: 100 | R3: 0 | S3: 0 | T3: 100 | U3: =V3/100 -> 0.9225092251 | V3: 92.25092251 | W3: 99.22509225 | X3: 1
A4: 2 | B4: 2021215349 | C4: 李国栋 | D4: 工程专硕 | E4: 98.0902439 | F4: 11.5 | G4: 0 | H4: 109.5902439 | I4: 0.9811218214 | J4: 98.11218214 | K4: 88.75833333 | M4: 0 | N4: 88.75833333 | O4: 0.9675397543 | P4: 96.75397543 | Q4: 100 | R4: 3 | S4: 0 | T4: 103 | U4: 0.9501845018 | V4: 95.01845018 | W4: 96.85206425 | X4: 2
A5: 3 | B5: 2021215347 | C5: 邢希贝 | D5: 工程专硕 | E5: 98.03902439 | F5: 4 | G5: 0 | H5: 102.0390244 | I5: 0.9135184839 | J5: 91.35184839 | K5: 90.691 | M5: 0 | N5: 90.691 | O5: 0.9886074306 | P5: 98.86074306 | Q5: 100 | R5: 0 | S5: 0 | T5: 100 | U5: 0.9225092251 | V5: 92.25092251 | W5: 96.69798207 | X5: 3
A6: 4 | B6: 2021215371 | C6: 王帅 | D6: 工程专硕 | E6: 98.07317073 | F6: 7 | G6: 0 | H6: 105.0731707 | I6: 0.9406820988 | J6: 94.06820988 | K6: 89.24264706 | M6: 0 | N6: 89.24264706 | O6: 0.9728191773 | P6: 97.28191773 | Q6: 100 | R6: 3.333333333 | S6: 0 | T6: 103.3333333 | U6: 0.9532595326 | V6: 95.32595326 | W6: 96.44357971 | X6: 4
A7: 5 | B7: 2021215381 | C7: 祝怀英 | D7: 工程专硕 | E7: 98.02195122 | F7: 5 | G7: 0 | H7: 103.0219512 | I7: 0.9223182724 | J7: 92.23182724 | K7: 88.40470588 | M7: 0 | N7: 88.40470588 | O7: 0.9636849206 | P7: 96.36849206 | Q7: 100 | R7: 0 | S7: 0 | T7: 100 | U7: 0.9225092251 | V7: 92.25092251 | W7: 95.12940214 | X7: 5
A8: 6 | B8: 2021215328 | C8: 金姝彤 | D8: 工程专硕 | E8: 98.00487805 | F8: 8.766666667 | G8: 0 | H8: 106.7715447 | I8: 0.9558870269 | J8: 95.58870269 | K8: 85.536 | L8: 1 | M8: 0 | N8: 86.536 | O8: 0.9433144702 | P8: 94.33144702 | Q8: 100 | R8: 2 | S8: 0 | T8: 102 | U8: 0.9409594096 | V8: 94.09594096 | W8: 94.55934755 | X8: 6
A9: 7 | B9: 2021215327 | C9: 陈俊杰 | D9: 工程专硕 | E9: 98.10731707 | F9: 3.833333335 | G9: 0 | H9: 101.9406504 | I9: 0.9126377772 | J9: 91.26377772 | K9: 86.33625 | M9: 0 | N9: 86.33625 | O9: 0.9411370288 | P9: 94.11370288 | Q9: 100 | R9: 0 | S9: 0 | T9: 100 | U9: 0.9225092251 | V9: 92.25092251 | W9: 93.35743981 | X9: 7
A10: 8 | B10: 2021215346 | C10: 刘莹莹 | D10: 工程专硕 | E10: 97.97073171 | G10: 0 | H10: 97.97073171 | I10: 0.8770965308 | J10: 87.70965308 | K10: 86.291 | M10: 0 | N10: 86.291 | O10: 0.9406437661 | P10: 94.06437661 | Q10: 100 | R10: 0 | S10: 0 | T10: 100 | U10: 0.9225092251 | V10: 92.25092251 | W10: 92.6120865 | X10: 8
A11: 9 | B11: 2021215359 | C11: 李阳 | D11: 工程专硕 | E11: 98.07317073 | G11: 0 | H11: 98.07317073 | I11: 0.8780136303 | J11: 87.80136303 | K11: 85.255 | M11: 0 | N11: 85.255 | O11: 0.9293505033 | P11: 92.93505033 | Q11: 100 | R11: 0 | S11: 0 | T11: 100 | U11: 0.9225092251 | V11: 92.25092251 | W11: 91.83990009 | X11: 9
A12: 10 | B12: 2021215311 | C12: 廉开程 | D12: 工程专硕 | E12: 98.10731707 | F12: 8.133333333 | G12: 0 | H12: 106.2406504 | I12: 0.9511341222 | J12: 95.11341222 | K12: 80.06 | M12: 0 | N12: 80.06 | O12: 0.8727206767 | P12: 87.27206767 | Q12: 100 | R12: 3.4 | S12: 0 | T12: 103.4 | U12: 0.9538745387 | V12: 95.38745387 | W12: 89.6518752 | X12: 10
A13: 11 | B13: 2021215380 | C13: 魏少平 | D13: 工程专硕 | E13: 98.10731707 | F13: 5.5 | G13: 0 | H13: 103.6073171 | I13: 0.9275588411 | J13: 92.75588411 | K13: 80.91382353 | M13: 0 | N13: 80.91382353 | O13: 0.8820280643 | P13: 88.20280643 | Q13: 100 | R13: 0 | S13: 0 | T13: 100 | U13: 0.9225092251 | V13: 92.25092251 | W13: 89.51823357 | X13: 11
A14: 12 | B14: 2021215370 | C14: 邵月梅 | D14: 工程专硕 | E14: 97.95365854 | G14: 0 | H14: 97.95365854 | I14: 0.8769436809 | J14: 87.69436809 | K14: 82.06661765 | M14: 0 | N14: 82.06661765 | O14: 0.8945944803 | P14: 89.45944803 | Q14: 100 | R14: 0 | S14: 0 | T14: 100 | U14: 0.9225092251 | V14: 92.25092251 | W14: 89.38557949 | X14: 12
A15: 13 | B15: 2021215363 | C15: 吴亚男 | D15: 工程专硕 | E15: 97.88536585 | G15: 0 | H15: 97.88536585 | I15: 0.8763322812 | J15: 87.63322812 | K15: 82.05911 | M15: 0 | N15: 82.05911 | O15: 0.8945126407 | P15: 89.45126407 | Q15: 100 | R15: 0 | S15: 0 | T15: 100 | U15: 0.9225092251 | V15: 92.25092251 | W15: 89.36762272 | X15: 13
A16: 14 | B16: 2021215354 | C16: 苑泊盈 | D16: 工程专硕 | E16: 98.03902439 | F16: 4.733333334 | G16: 0 | H16: 102.7723577 | I16: 0.9200837521 | J16: 92.00837521 | K16: 79.85809 | M16: 0 | N16: 79.85809 | O16: 0.8705196896 | P16: 87.05196896 | Q16: 100 | R16: 8.4 | S16: 0 | T16: 108.4 | U16: 1 | V16: 100 | W16: 89.33805331 | X16: 14
A17: 15 | B17: 2021215301 | C17: 于川 | D17: 工程专硕 | E17: 97.95 | G17: 0 | H17: 97.95 | I17: 0.8769109273 | J17: 87.69109273 | K17: 81.99444 | M17: 0 | N17: 81.99444 | O17: 0.8938076838 | P17: 89.38076838 | Q17: 100 | R17: 0 | S17: 0 | T17: 100 | U17: 0.9225092251 | V17: 92.25092251 | W17: 89.32984866 | X17: 15
A18: 16 | B18: 2021215330 | C18: 杨田萌 | D18: 工程专硕 | E18: 97.83414634 | F18: 3 | G18: 0 | H18: 100.8341463 | I18: 0.9027316465 | J18: 90.27316465 | K18: 79.88125 | M18: 0 | N18: 79.88125 | O18: 0.8707721529 | P18: 87.07721529 | Q18: 100 | R18: 0 | S18: 0 | T18: 100 | U18: 0.9225092251 | V18: 92.25092251 | W18: 88.23377588 | X18: 16
A19: 17 | B19: 2021215320 | C19: 刘晓东 | D19: 工程专硕 | E19: 97.88536585 | F19: 10.4 | G19: 0 | H19: 108.2853659 | I19: 0.9694397201 | J19: 96.94397201 | K19: 77.06726316 | M19: 0 | N19: 77.06726316 | O19: 0.8400973527 | P19: 84.00973527 | Q19: 100 | R19: 2 | S19: 0 | T19: 102 | U19: 0.9409594096 | V19: 94.09594096 | W19: 87.60520319 | X19: 17
A20: 18 | B20: 2021215362 | C20: 刘文强 | D20: 工程专硕 | E20: 98.02195122 | F20: 1.5 | G20: 0 | H20: 99.52195122 | I20: 0.8909840381 | J20: 89.09840381 | K20: 77.62593985 | M20: 0 | N20: 77.62593985 | O20: 0.8461873939 | P20: 84.61873939 | Q20: 100 | R20: 0 | S20: 0 | T20: 100 | U20: 0.9225092251 | V20: 92.25092251 | W20: 86.27789059 | X20: 18
A21: 19 | B21: 2021215350 | C21: 马强 | D21: 工程专硕 | E21: 98.03902439 | G21: 0 | H21: 98.03902439 | I21: 0.8777079305 | J21: 87.77079305 | K21: 77.63 | L21: 0.25 | M21: 0 | N21: 77.88 | O21: 0.8489568612 | P21: 84.89568612 | Q21: 100 | R21: 0 | S21: 0 | T21: 100 | U21: 0.9225092251 | V21: 92.25092251 | W21: 86.20623114 | X21: 19
A22: 20 | B22: 2021215303 | C22: 赵志浩 | D22: 工程专硕 | E22: 97.86829268 | G22: 0 | H22: 97.86829268 | I22: 0.8761794312 | J22: 87.61794312 | K22: 76.16105 | M22: 0 | N22: 76.16105 | O22: 0.8302188746 | P22: 83.02188746 | Q22: 100 | R22: 0 | S22: 0 | T22: 100 | U22: 0.9225092251 | V22: 92.25092251 | W22: 84.86400209 | X22: 20
A23: 21 | B23: 2021215333 | C23: 刘学治 | D23: 工程专硕 | E23: 98.14146341 | F23: 4.6 | G23: 0 | H23: 102.7414634 | I23: 0.9198071665 | J23: 91.98071665 | K23: 74.98370588 | M23: 0 | N23: 74.98370588 | O23: 0.8173848431 | P23: 81.73848431 | Q23: 100 | R23: 0 | S23: 0 | T23: 100 | U23: 0.9225092251 | V23: 92.25092251 | W23: 84.8381746 | X23: 21
A24: 22 | B24: 2021215345 | C24: 陈君 | D24: 工程专硕 | E24: 98.03902439 | G24: 0 | H24: 98.03902439 | I24: 0.8777079305 | J24: 87.77079305 | K24: 75.91333 | M24: 0 | N24: 75.91333 | O24: 0.8275185202 | P24: 82.75185202 | Q24: 100 | R24: 0 | S24: 0 | T24: 100 | U24: 0.9225092251 | V24: 92.25092251 | W24: 84.70554728 | X24: 22
A25: 23 | B25: 2021215361 | C25: 周文睿 | D25: 工程专硕 | E25: 98.10731707 | G25: 0 | H25: 98.10731707 | I25: 0.8783193302 | J25: 87.83193302 | K25: 73.95107955 | M25: 0 | N25: 73.95107955 | O25: 0.8061283561 | P25: 80.61283561 | Q25: 100 | R25: 0 | S25: 0 | T25: 100 | U25: 0.9225092251 | V25: 92.25092251 | W25: 83.22046378 | X25: 23

Sheet 环境学硕
A1: 序号 | B1: 学号 | C1: 姓名 | D1: 方向 | E1: 德育成绩 | K1: 智育成绩 | Q1: 文体成绩 | W1: 总分 | X1: 排名
E2: 德育基础分 | F2: 奖励分 | G2: 惩罚分 | H2: 个人德育总分 | I2: 个人德育总分/基准 | J2: 德育总成绩 | K2: 智育基础分 | L2: 奖励分 | M2: 惩罚分 | N2: 个人智育总分 | O2: 个人智育总分/基准 | P2: 智育总成绩 | Q2: 文体基础分 | R2: 奖励分 | S2: 惩罚分 | T2: 个人文体总分 | U2: 个人文体总分/基准 | V2: 文体总成绩
A3: 1 | B3: 2021210653 | C3: 游恋 | D3: 环境学硕 | E3: 96.10384615 | F3: 0 | G3: 0 | H3: 96.10384615 | I3: 0.8044493094 | J3: 80.44493094 | K3: 87.49871429 | L3: 16 | M3: 0 | N3: 103.4987143 | O3: 1 | P3: 100 | Q3: 100 | R3: 0 | S3: 0 | T3: 100 | U3: 0.8720372534 | V3: 87.20372534 | W3: 94.80935872 | X3: 1
A4: 2 | B4: 2021210654 | C4: 韦标 | D4: 环境学硕 | E4: 98.03653846 | F4: 7 | G4: 0 | H4: 105.0365385 | I4: 0.8792215318 | J4: 87.92215318 | K4: 89.80666667 | L4: 5.167 | M4: 0 | N4: 94.97366667 | O4: 0.9176313669 | P4: 91.76313669 | Q4: 100 | R4: 0 | S4: 0 | T4: 100 | U4: 0.8720372534 | V4: 87.20372534 | W4: 90.53899886 | X4: 2
A5: 3 | B5: 2021210679 | C5: 刘欢欢 | D5: 环境学硕 | E5: 102.2923077 | F5: 16.6 | G5: 0 | H5: 118.8923077 | I5: 0.9952029877 | J5: 99.52029877 | K5: 85.24666667 | L5: 2.263 | M5: 0 | N5: 87.50966667 | O5: 0.8455145291 | P5: 84.55145291 | Q5: 100 | R5: 0 | S5: 0 | T5: 100 | U5: 0.8720372534 | V5: 87.20372534 | W5: 87.81044932 | X5: 3
A6: 4 | B6: 2021210670 | C6: 宋明欣 | D6: 环境学硕 | E6: 102.5961538 | F6: 10.6 | G6: 0 | H6: 113.1961538 | I6: 0.9475226168 | J6: 94.75226168 | K6: 80.34 | L6: 7.5 | M6: 0 | N6: 87.84 | O6: 0.8487061951 | P6: 84.87061951 | Q6: 100 | R6: 0 | S6: 0 | T6: 100 | U6: 0.8720372534 | V6: 87.20372534 | W6: 87.08025853 | X6: 4
A7: 5 | B7: 2021210646 | C7: 牛婧雯 | D7: 环境学硕 | E7: 96.15769231 | F7: 0 | G7: 0 | H7: 96.15769231 | I7: 0.8049000354 | J7: 80.49000354 | K7: 83.86 | L7: 7.808 | M7: 0 | N7: 91.668 | O7: 0.8856921618 | P7: 88.56921618 | Q7: 100 | R7: 0 | S7: 0 | T7: 100 | U7: 0.8720372534 | V7: 87.20372534 | W7: 86.81682457 | X7: 5
A8: 6 | B8: 2021210660 | C8: 万雨若 | D8: 环境学硕 | E8: 102.8653846 | F8: 16.6 | G8: 0 | H8: 119.4653846 | I8: 1 | J8: 100 | K8: 85.69333333 | L8: 0 | M8: 0 | N8: 85.69333333 | O8: 0.8279651967 | P8: 82.79651967 | Q8: 100 | R8: 0 | S8: 0 | T8: 100 | U8: 0.8720372534 | V8: 87.20372534 | W8: 86.6779363 | X8: 6
A9: 7 | B9: 2021210668 | C9: 邢雨菲 | D9: 环境学硕 | E9: 103.9846154 | F9: 4.6 | G9: 0 | H9: 108.5846154 | I9: 0.9089211551 | J9: 90.89211551 | K9: 87.31625 | L9: 0 | M9: 0 | N9: 87.31625 | O9: 0.8436457458 | P9: 84.36457458 | Q9: 100 | R9: 0 | S9: 0 | T9: 100 | U9: 0.8720372534 | V9: 87.20372534 | W9: 85.95399784 | X9: 7
A10: 8 | B10: 2021210658 | C10: 李蒙 | D10: 环境学硕 | E10: 99.07692308 | F10: 7 | G10: 0 | H10: 106.0769231 | I10: 0.8879302019 | J10: 88.79302019 | K10: 86.67333333 | L10: 0 | M10: 0 | N10: 86.67333333 | O10: 0.8374339134 | P10: 83.74339134 | Q10: 100 | R10: 0 | S10: 0 | T10: 100 | U10: 0.8720372534 | V10: 87.20372534 | W10: 85.09935051 | X10: 8
A11: 9 | B11: 2021210652 | C11: 王海柘 | D11: 环境学硕 | E11: 104.2923077 | F11: 11 | G11: 0 | H11: 115.2923077 | I11: 0.9650687357 | J11: 96.50687357 | K11: 83.8975 | L11: 0 | M11: 0 | N11: 83.8975 | O11: 0.8106139345 | P11: 81.06139345 | Q11: 100 | R11: 0 | S11: 0 | T11: 100 | U11: 0.8720372534 | V11: 87.20372534 | W11: 84.76472266 | X11: 9
A12: 10 | B12: 2021210655 | C12: 杨晨璐 | D12: 环境学硕 | E12: 106.4307692 | F12: 8.8 | G12: 0 | H12: 115.2307692 | I12: 0.9645536203 | J12: 96.45536203 | K12: 81.83833333 | L12: 0 | M12: 0 | N12: 81.83833333 | O12: 0.7907183572 | P12: 79.07183572 | Q12: 100 | R12: 11.4 | S12: 0 | T12: 111.4 | U12: 0.9714495003 | V12: 97.14495003 | W12: 84.35585241 | X12: 10
A13: 11 | B13: 2021210645 | C13: 李佳昕 | D13: 环境学硕 | E13: 98.03653846 | F13: 3.5 | G13: 0 | H13: 101.5365385 | I13: 0.8499243424 | J13: 84.99243424 | K13: 85.565 | L13: 0.083 | M13: 0 | N13: 85.648 | O13: 0.8275271881 | P13: 82.75271881 | Q13: 100 | R13: 5.667 | S13: 0 | T13: 105.667 | U13: 0.9214556046 | V13: 92.14556046 | W13: 84.13994606 | X13: 11
A14: 12 | B14: 2021210657 | C14: 陈雪萱 | D14: 环境学硕 | E14: 96.07692308 | F14: 4 | G14: 0 | H14: 100.0769231 | I14: 0.8377064486 | J14: 83.77064486 | K14: 85.67333333 | L14: 0 | M14: 0 | N14: 85.67333333 | O14: 0.8277719576 | P14: 82.77719576 | Q14: 100 | R14: 0 | S14: 0 | T14: 100 | U14: 0.8720372534 | V14: 87.20372534 | W14: 83.41853854 | X14: 12
A15: 13 | B15: 2021210676 | C15: 罗抒晗 | D15: 环境学硕 | E15: 103.8884615 | F15: 0 | G15: 0 | H15: 103.8884615 | I15: 0.8696114098 | J15: 86.96114098 | K15: 84.45238095 | L15: 0 | M15: 0 | N15: 84.45238095 | O15: 0.8159751697 | P15: 81.59751697 | Q15: 102 | R15: 0 | S15: 0 | T15: 102 | U15: 0.8894779985 | V15: 88.94779985 | W15: 83.40527006 | X15: 13
A16: 14 | B16: 2021210682 | C16: 王亚卓 | D16: 环境学硕 | E16: 99.40192308 | F16: 4 | G16: 0 | H16: 103.4019231 | I16: 0.8655387785 | J16: 86.55387785 | K16: 84.76117647 | L16: 0 | M16: 0 | N16: 84.76117647 | O16: 0.8189587383 | P16: 81.89587383 | Q16: 100 | R16: 0 | S16: 0 | T16: 100 | U16: 0.8720372534 | V16: 87.20372534 | W16: 83.35825979 | X16: 14
A17: 15 | B17: 2021210671 | C17: 周梦晗 | D17: 环境学硕 | E17: 95.95576923 | F17: 0 | G17: 0 | H17: 95.95576923 | I17: 0.8032098129 | J17: 80.32098129 | K17: 83.46 | L17: 3.125 | M17: 0 | N17: 86.585 | O17: 0.8365804406 | P17: 83.65804406 | Q17: 100 | S17: 0 | T17: 100 | U17: 0.8720372534 | V17: 87.20372534 | W17: 83.34519964 | X17: 15
A18: 16 | B18: 2021210665 | C18: 李思萌 | D18: 环境学硕 | E18: 96.55 | F18: 0 | G18: 0 | H18: 96.55 | I18: 0.8081838962 | J18: 80.81838962 | K18: 85.45333333 | L18: 0.2 | M18: 0 | N18: 85.65333333 | O18: 0.8275787185 | P18: 82.75787185 | Q18: 100 | R18: 0 | S18: 0 | T18: 100 | U18: 0.8720372534 | V18: 87.20372534 | W18: 82.81456075 | X18: 16
A19: 17 | B19: 2021210662 | C19: 伍心怡 | D19: 环境学硕 | E19: 99.07692308 | F19: 3 | G19: 0 | H19: 102.0769231 | I19: 0.8544476997 | J19: 85.44476997 | K19: 83.88461538 | L19: 0.225 | M19: 0 | N19: 84.10961538 | O19: 0.8126633839 | P19: 81.26633839 | Q19: 100 | R19: 0 | S19: 0 | T19: 100 | U19: 0.8720372534 | V19: 87.20372534 | W19: 82.6957634 | X19: 17
A20: 18 | B20: 2021210673 | C20: 孙雅倩 | D20: 环境学硕 | E20: 96.98269231 | F20: 0.5 | G20: 0 | H20: 97.48269231 | I20: 0.8159911143 | J20: 81.59911143 | K20: 85.13142857 | L20: 0 | M20: 0 | N20: 85.13142857 | O20: 0.8225360978 | P20: 82.25360978 | Q20: 100 | R20: 0 | S20: 0 | T20: 100 | U20: 0.8720372534 | V20: 87.20372534 | W20: 82.61772166 | X20: 18
A21: 19 | B21: 2021210650 | C21: 曹瑜 | D21: 环境学硕 | E21: 98.10384615 | F21: 4 | G21: 0 | H21: 102.1038462 | I21: 0.8546730627 | J21: 85.46730627 | K21: 82.70666667 | L21: 0 | M21: 0 | N21: 82.70666667 | O21: 0.7991081555 | P21: 79.91081555 | Q21: 102 | R21: 0 | S21: 0 | T21: 102 | U21: 0.8894779985 | V21: 88.94779985 | W21: 81.92581212 | X21: 19
A22: 20 | B22: 2021210661 | C22: 闫京瑞 | D22: 环境学硕 | E22: 100.1307692 | F22: 8 | G22: 0 | H22: 108.1307692 | I22: 0.9051221789 | J22: 90.51221789 | K22: 81.44666667 | L22: 0 | M22: 0 | N22: 81.44666667 | O22: 0.7869340912 | P22: 78.69340912 | Q22: 100 | R22: 0 | S22: 0 | T22: 100 | U22: 0.8720372534 | V22: 87.20372534 | W22: 81.9082025 | X22: 20
A23: 21 | B23: 2021210680 | C23: 朱裕文 | D23: 环境学硕 | E23: 96.05 | F23: 0 | G23: 0 | H23: 96.05 | I23: 0.8039985834 | J23: 80.39985834 | K23: 83.03166667 | L23: 0 | M23: 0 | N23: 83.03166667 | O23: 0.8022482911 | P23: 80.22482911 | Q23: 100 | R23: 0 | S23: 0 | T23: 100 | U23: 0.8720372534 | V23: 87.20372534 | W23: 80.95772458 | X23: 21
A24: 22 | B24: 2021210664 | C24: 曾宣凯 | D24: 环境学硕 | E24: 96.03653846 | F24: 0 | G24: 0 | H24: 96.03653846 | I24: 0.8038859019 | J24: 80.38859019 | K24: 81.47619048 | L24: 0 | M24: 0 | N24: 81.47619048 | O24: 0.7872193489 | P24: 78.72193489 | Q24: 103.33 | R24: 8.004 | S24: 0 | T24: 111.334 | U24: 0.9708739557 | V24: 97.08739557 | W24: 80.89181202 | X24: 22
A25: 23 | B25: 2021210669 | C25: 陈沛含 | D25: 环境学硕 | E25: 98.99615385 | F25: 3 | G25: 0 | H25: 101.9961538 | I25: 0.8537716107 | J25: 85.37716107 | K25: 80.97333333 | L25: 0 | M25: 0 | N25: 80.97333333 | O25: 0.7823607655 | P25: 78.23607655 | Q25: 100 | R25: 0 | S25: 0 | T25: 100 | U25: 0.8720372534 | V25: 87.20372534 | W25: 80.56105833 | X25: 23
A26: 24 | B26: 2021210656 | C26: 马源 | D26: 环境学硕 | E26: 96.15769231 | F26: 0 | G26: 0 | H26: 96.15769231 | I26: 0.8049000354 | J26: 80.49000354 | K26: 80.85725 | L26: 0 | M26: 0 | N26: 80.85725 | O26: 0.7812391734 | P26: 78.12391734 | Q26: 100 | R26: 0 | S26: 0 | T26: 100 | U26: 0.8720372534 | V26: 87.20372534 | W26: 79.50511538 | X26: 24
A27: 25 | B27: 2021210672 | C27: 李文静 | D27: 环境学硕 | E27: 95.95576923 | F27: 0.5 | G27: 0 | H27: 96.45576923 | I27: 0.8073951257 | J27: 80.73951257 | K27: 80.63833333 | L27: 0 | M27: 0 | N27: 80.63833333 | O27: 0.7791240103 | P27: 77.91240103 | Q27: 100 | R27: 0 | S27: 0 | T27: 100 | U27: 0.8720372534 | V27: 87.20372534 | W27: 79.40695577 | X27: 25
A28: 26 | B28: 2021210674 | C28: 林润静 | D28: 环境学硕 | E28: 93.02307692 | F28: 0 | G28: 0 | H28: 93.02307692 | I28: 0.7786613438 | J28: 77.86613438 | K28: 78.0875 | L28: 0.083 | M28: 0 | N28: 78.1705 | O28: 0.7552799138 | P28: 75.52799138 | Q28: 103.33 | R28: 8.004 | S28: 0 | T28: 111.334 | U28: 0.9708739557 | V28: 97.08739557 | W28: 78.1515604 | X28: 26
A29: 27 | B29: 2021210648 | C29: 李瑶瑶 | D29: 环境学硕 | E29: 93.09038462 | F29: 0 | G29: 0 | H29: 93.09038462 | I29: 0.7792247513 | J29: 77.92247513 | K29: 78.8 | L29: 0.5 | M29: 0 | N29: 79.3 | O29: 0.7661930928 | P29: 76.61930928 | Q29: 102 | R29: 0 | S29: 0 | T29: 102 | U29: 0.8894779985 | V29: 88.94779985 | W29: 78.11279151 | X29: 27
A30: 28 | B30: 2021210681 | C30: 孙鹤 | D30: 环境学硕 | E30: 95.95576923 | F30: 0 | G30: 0 | H30: 95.95576923 | I30: 0.8032098129 | J30: 80.32098129 | K30: 75.33125 | L30: 3.125 | M30: 0 | N30: 78.45625 | O30: 0.7580408176 | P30: 75.80408176 | Q30: 100 | R30: 0 | S30: 0 | T30: 100 | U30: 0.8720372534 | V30: 87.20372534 | W30: 77.84742603 | X30: 28
A31: 29 | B31: 2021210663 | C31: 张怡欣 | D31: 环境学硕 | E31: 95.92884615 | F31: 0 | G31: 0 | H31: 95.92884615 | I31: 0.80298445 | J31: 80.298445 | K31: 78.10666667 | L31: 0.1 | M31: 0 | N31: 78.20666667 | O31: 0.7556293545 | P31: 75.56293545 | Q31: 100 | R31: 0 | S31: 0 | T31: 100 | U31: 0.8720372534 | V31: 87.20372534 | W31: 77.67411635 | X31: 29
A32: 30 | B32: 2021210677 | C32: 余锦标 | D32: 环境学硕 | E32: 95.94230769 | F32: 0 | G32: 0 | H32: 95.94230769 | I32: 0.8030971315 | J32: 80.30971315 | K32: 74.83238095 | L32: 0 | M32: 0 | N32: 74.83238095 | O32: 0.7230271552 | P32: 72.30271552 | Q32: 106.67 | R32: 8.004 | S32: 0 | T32: 114.674 | U32: 1 | V32: 100 | W32: 76.67384349 | X32: 30
A33: 31 | B33: 2021210678 | C33: 王昆 | D33: 环境学硕 | E33: 96.02307692 | F33: 0 | G33: 0 | H33: 96.02307692 | I33: 0.8037732204 | J33: 80.37732204 | K33: 75.98833333 | L33: 0 | M33: 0 | N33: 75.98833333 | O33: 0.7341959159 | P33: 73.41959159 | Q33: 100 | R33: 0 | S33: 0 | T33: 100 | U33: 0.8720372534 | V33: 87.20372534 | W33: 76.18955106 | X33: 31

Sheet 环境专硕
A1: 序号 | B1: 学号 | C1: 姓名 | D1: 方向 | E1: 德育成绩 | K1: 智育成绩 | Q1: 文体成绩 | W1: 总分 | X1: 排名
E2: 德育基础分 | F2: 奖励分 | G2: 惩罚分 | H2: 个人德育总分 | I2: 个人德育总分/基准 | J2: 德育总成绩 | K2: 智育基础分 | L2: 奖励分 | M2: 惩罚分 | N2: 个人智育总分 | O2: 个人智育总分/基准 | P2: 智育总成绩 | Q2: 文体基础分 | R2: 奖励分 | S2: 惩罚分 | T2: 个人文体总分 | U2: 个人文体总分/基准 | V2: 文体总成绩
A3: 1 | B3: 2021215403 | C3: 张悦 | D3: 环境专硕 | E3: 96.06346154 | F3: 0 | G3: 0 | H3: 96.06346154 | I3: 0.9039467255 | J3: 90.39467255 | K3: 86.67 | L3: 7.677 | M3: 0 | N3: 94.347 | O3: 1 | P3: 100 | Q3: 100 | R3: 0 | S3: 0 | T3: 100 | U3: 0.967773154 | V3: 96.7773154 | W3: 97.75666605 | X3: 1
A4: 2 | B4: 2021215397 | C4: 尚鹏寅 | D4: 环境专硕 | E4: 96.225 | F4: 3 | G4: 0 | H4: 99.225 | I4: 0.9336964586 | J4: 93.36964586 | K4: 87.69444444 | L4: 3.492 | M4: 0 | N4: 91.18644444 | O4: 0.9665007308 | P4: 96.65007308 | Q4: 100 | R4: 0 | S4: 0 | T4: 100 | U4: 0.967773154 | V4: 96.7773154 | W4: 96.00671186 | X4: 2
A5: 3 | B5: 2021215401 | C5: 黄石雨 | D5: 环境专硕 | E5: 100.7711538 | F5: 3 | G5: 0 | H5: 103.7711538 | I5: 0.9764752719 | J5: 97.64752719 | K5: 86.31333333 | L5: 2.363 | M5: 0 | N5: 88.67633333 | O5: 0.9398956335 | P5: 93.98956335 | Q5: 100 | R5: 0 | S5: 0 | T5: 100 | U5: 0.967773154 | V5: 96.7773154 | W5: 94.99993132 | X5: 3
A6: 4 | B6: 2021215395 | C6: 李昀照 | D6: 环境专硕 | E6: 100.0634615 | F6: 4 | G6: 0 | H6: 104.0634615 | I6: 0.9792258555 | J6: 97.92258555 | K6: 87.91052632 | L6: 0.4 | M6: 0 | N6: 88.31052632 | O6: 0.9360183823 | P6: 93.60183823 | Q6: 100 | R6: 0 | S6: 0 | T6: 100 | U6: 0.967773154 | V6: 96.7773154 | W6: 94.78353541 | X6: 4
A7: 5 | B7: 2021215400 | C7: 陈茜 | D7: 环境专硕 | E7: 101.0903846 | F7: 0.5 | G7: 0 | H7: 101.5903846 | I7: 0.9559544706 | J7: 95.59544706 | K7: 86.08625 | L7: 0.4 | M7: 0 | N7: 86.48625 | O7: 0.9166825654 | P7: 91.66825654 | Q7: 100 | R7: 0 | S7: 0 | T7: 100 | U7: 0.967773154 | V7: 96.7773154 | W7: 92.96460053 | X7: 5
A8: 6 | B8: 2021215389 | C8: 彭然 | D8: 环境专硕 | E8: 99.39615385 | F8: 3 | G8: 0 | H8: 102.3961538 | I8: 0.9635366714 | J8: 96.35366714 | K8: 86.16666667 | L8: 0 | M8: 0 | N8: 86.16666667 | O8: 0.913295247 | P8: 91.3295247 | Q8: 100 | R8: 0 | S8: 0 | T8: 100 | U8: 0.967773154 | V8: 96.7773154 | W8: 92.87913226 | X8: 6
A9: 7 | B9: 2021215382 | C9: 谭青松 | D9: 环境专硕 | E9: 92.96923077 | F9: 3.5 | G9: 0 | H9: 96.46923077 | I9: 0.9077649699 | J9: 90.77649699 | K9: 87.16666667 | L9: 0 | M9: 0 | N9: 87.16666667 | O9: 0.9238944181 | P9: 92.38944181 | Q9: 100 | R9: 0 | S9: 0 | T9: 100 | U9: 0.967773154 | V9: 96.7773154 | W9: 92.50564021 | X9: 7
A10: 8 | B10: 2021215402 | C10: 袁帅 | D10: 环境专硕 | E10: 96.19807692 | F10: 0 | G10: 0 | H10: 96.19807692 | I10: 0.9052134417 | J10: 90.52134417 | K10: 84.9875 | L10: 2.14 | M10: 0 | N10: 87.1275 | O10: 0.9234792839 | P10: 92.34792839 | Q10: 100 | R10: 0 | S10: 0 | T10: 100 | U10: 0.967773154 | V10: 96.7773154 | W10: 92.42555025 | X10: 8
A11: 9 | B11: 2021215387 | C11: 叶绮彤 | D11: 环境专硕 | E11: 100.7711538 | F11: 5.5 | G11: 0 | H11: 106.2711538 | I11: 1 | J11: 100 | K11: 84.49 | L11: 0 | M11: 0 | N11: 84.49 | O11: 0.89552397 | P11: 89.552397 | Q11: 100 | R11: 0 | S11: 0 | T11: 100 | U11: 0.967773154 | V11: 96.7773154 | W11: 92.36440944 | X11: 9
A12: 10 | B12: 2021215391 | C12: 包育文 | D12: 环境专硕 | E12: 99.02307692 | F12: 3 | G12: 0 | H12: 102.0230769 | I12: 0.9600260582 | J12: 96.00260582 | K12: 85.49444444 | L12: 0 | M12: 0 | N12: 85.49444444 | O12: 0.9061702486 | P12: 90.61702486 | Q12: 100 | R12: 0 | S12: 0 | T12: 100 | U12: 0.967773154 | V12: 96.7773154 | W12: 92.3101701 | X12: 10
A13: 11 | B13: 2021215394 | C13: 徐凌婕 | D13: 环境专硕 | E13: 100.0903846 | F13: 4 | G13: 0 | H13: 104.0903846 | I13: 0.9794791987 | J13: 97.94791987 | K13: 84.13125 | L13: 0.05 | M13: 0 | N13: 84.18125 | O13: 0.8922514759 | P13: 89.22514759 | Q13: 100 | R13: 0 | S13: 0 | T13: 100 | U13: 0.967773154 | V13: 96.7773154 | W13: 91.72491883 | X13: 11
A14: 12 | B14: 2021215386 | C14: 李思萌 | D14: 环境专硕 | E14: 100.1576923 | F14: 0.5 | G14: 0 | H14: 100.6576923 | I14: 0.9471779374 | J14: 94.71779374 | K14: 82.95875 | L14: 1.153 | M14: 0 | N14: 84.11175 | O14: 0.8915148335 | P14: 89.15148335 | Q14: 100 | R14: 0 | S14: 0 | T14: 100 | U14: 0.967773154 | V14: 96.7773154 | W14: 91.02732864 | X14: 12
A15: 13 | B15: 2021215398 | C15: 马霖楠 | D15: 环境专硕 | E15: 100.1307692 | F15: 2.5 | G15: 0 | H15: 102.6307692 | I15: 0.9657443767 | J15: 96.57443767 | K15: 83.2 | L15: 0 | M15: 0 | N15: 83.2 | O15: 0.8818510392 | P15: 88.18510392 | Q15: 100 | R15: 0 | S15: 0 | T15: 100 | U15: 0.967773154 | V15: 96.7773154 | W15: 90.72219182 | X15: 13
A16: 14 | B16: 2021215392 | C16: 黄杰锐 | D16: 环境专硕 | E16: 99.96923077 | F16: 0 | G16: 0 | H16: 99.96923077 | I16: 0.9406995892 | J16: 94.06995892 | K16: 81.6 | L16: 0 | M16: 0 | N16: 81.6 | O16: 0.8648923654 | P16: 86.48923654 | Q16: 100 | R16: 0 | S16: 0 | T16: 100 | U16: 0.967773154 | V16: 96.7773154 | W16: 89.0341889 | X16: 14
A17: 15 | B17: 2021215396 | C17: 马霄慧 | D17: 环境专硕 | E17: 100.0634615 | F17: 4.5 | G17: 0 | H17: 104.5634615 | I17: 0.9839308011 | J17: 98.39308011 | K17: 80.36111111 | L17: 0 | M17: 0 | N17: 80.36111111 | O17: 0.8517611701 | P17: 85.17611701 | Q17: 100 | R17: 0 | S17: 0 | T17: 100 | U17: 0.967773154 | V17: 96.7773154 | W17: 88.97962947 | X17: 15
A18: 16 | B18: 2021215399 | C18: 王辰予 | D18: 环境专硕 | E18: 93.10384615 | F18: 0 | G18: 0 | H18: 93.10384615 | I18: 0.8760970666 | J18: 87.60970666 | K18: 81.74444444 | L18: 0 | M18: 0 | N18: 81.74444444 | O18: 0.8664233568 | P18: 86.64233568 | Q18: 103.33 | R18: 0 | S18: 0 | T18: 103.33 | U18: 1 | V18: 100 | W18: 88.17157631 | X18: 16
A19: 17 | B19: 2021215384 | C19: 康冉 | D19: 环境专硕 | E19: 96.03653846 | F19: 0 | G19: 0 | H19: 96.03653846 | I19: 0.9036933823 | J19: 90.36933823 | K19: 81.15861111 | L19: 0 | M19: 0 | N19: 81.15861111 | O19: 0.860214009 | P19: 86.0214009 | Q19: 100 | R19: 0 | S19: 0 | T19: 100 | U19: 0.967773154 | V19: 96.7773154 | W19: 87.96657982 | X19: 17
A20: 18 | B20: 2021215390 | C20: 张晨 | D20: 环境专硕 | E20: 97.98269231 | F20: 0 | G20: 0 | H20: 97.98269231 | I20: 0.9220064783 | J20: 92.20064783 | K20: 79.69666667 | L20: 0 | M20: 0 | N20: 79.69666667 | O20: 0.8447186097 | P20: 84.47186097 | Q20: 100 | R20: 0 | S20: 0 | T20: 100 | U20: 0.967773154 | V20: 96.7773154 | W20: 87.24816378 | X20: 18
A21: 19 | B21: 2021215393 | C21: 孙博 | D21: 环境专硕 | E21: 96.10384615 | F21: 0 | G21: 0 | H21: 96.10384615 | I21: 0.9043267404 | J21: 90.43267404 | K21: 79.77625 | L21: 0 | M21: 0 | N21: 79.77625 | O21: 0.845562127 | P21: 84.5562127 | Q21: 100 | R21: 0 | S21: 0 | T21: 100 | U21: 0.967773154 | V21: 96.7773154 | W21: 86.95361524 | X21: 19
A22: 20 | B22: 2021215385 | C22: 裴茂辰 | D22: 环境专硕 | E22: 95.94230769 | F22: 0 | G22: 0 | H22: 95.94230769 | I22: 0.902806681 | J22: 90.2806681 | K22: 79.495 | L22: 0 | M22: 0 | N22: 79.495 | O22: 0.8425811102 | P22: 84.25811102 | Q22: 100 | R22: 0 | S22: 0 | T22: 100 | U22: 0.967773154 | V22: 96.7773154 | W22: 86.71454287 | X22: 20
A23: 21 | B23: 2021215388 | C23: 陈思源 | D23: 环境专硕 | E23: 97.96923077 | F23: 0 | G23: 0 | H23: 97.96923077 | I23: 0.9218798067 | J23: 92.18798067 | K23: 78.95 | L23: 0 | M23: 0 | N23: 78.95 | O23: 0.8368045619 | P23: 83.68045619 | Q23: 100 | R23: 0 | S23: 0 | T23: 100 | U23: 0.967773154 | V23: 96.7773154 | W23: 86.69164701 | X23: 21

Sheet 国际班
A1: 序号 | B1: 学号 | C1: 姓名 | D1: 方向 | E1: 德育成绩 | K1: 智育成绩 | Q1: 文体成绩 | W1: 总分 | X1: 排名
E2: 基础分 | F2: 奖励分 | G2: 惩罚分 | H2: 个人德育总分 | I2: 个人德育总分/基准 | J2: 德育总成绩 | K2: 基础分 | L2: 奖励分 | M2: 惩罚分 | N2: 个人智育总分 | O2: 个人智育总分/基准 | P2: 智育总成绩 | Q2: 基础分 | R2: 奖励分 | S2: 惩罚分 | T2: 个人文体总分 | U2: 个人文体总分/基准 | V2: 文体总成绩
A3: 1 | B3: 2021210616 | C3: 钱锦秀 | D3: 国际班 | E3: 97.3625 | F3: 48.2500 | G3: 0.0000 | H3: =E3+F3 -> 145.6125 | I3: =H3/145.6125 -> 1.0000 | J3: =I3*100 -> 100.0000 | K3: 90.5340 | L3: 6.2512 | M3: 0.0000 | N3: =K3+L3 -> 96.7852 | O3: =N3/97.5064 -> 0.9926 | P3: =O3*100 -> 99.2604 | Q3: 100.0000 | R3: 0.0000 | S3: 0.0000 | T3: 100.0000 | U3: =T3/100 -> 1.0000 | V3: 100.0000 | W3: =J3*0.2+P3*0.7+V3*0.1 -> 99.4823 | X3: 1
A4: 2 | B4: 2021210622 | C4: 尚春丽 | D4: 国际班 | E4: 97.7125 | F4: 12.7000 | G4: 0.0000 | H4: 110.4125 | I4: 0.7583 | J4: 75.8263 | K4: 89.9733 | L4: 7.5331 | M4: 0.0000 | N4: 97.5064 | O4: 1.0000 | P4: 100.0000 | Q4: 100.0000 | R4: 0.0000 | S4: 0.0000 | T4: 100.0000 | U4: 1.0000 | V4: 100.0000 | W4: 95.1653 | X4: 2
A5: 3 | B5: 2021210649 | C5: 杨百玉 | D5: 国际班 | E5: 97.1438 | F5: 13.0000 | G5: 0.0000 | H5: 110.1438 | I5: 0.7564 | J5: 75.6417 | K5: 89.0150 | L5: 6.5313 | M5: 0.0000 | N5: 95.5463 | O5: 0.9799 | P5: 97.9897 | Q5: 100.0000 | R5: 0.0000 | S5: 0.0000 | T5: 100.0000 | U5: 1.0000 | V5: 100.0000 | W5: 93.7211 | X5: 3
A6: 4 | B6: 2021210644 | C6: 张腾跃 | D6: 国际班 | E6: 97.8438 | F6: 14.3000 | G6: 0.0000 | H6: 112.1438 | I6: 0.7702 | J6: 77.0152 | K6: 90.1154 | L6: 0.0000 | M6: 0.0000 | N6: 90.1154 | O6: 0.9242 | P6: 92.4200 | Q6: 100.0000 | R6: 0.0000 | S6: 0.0000 | T6: 100.0000 | U6: 1.0000 | V6: 100.0000 | W6: 90.0970 | X6: 4
A7: 5 | B7: 2021210675 | C7: 王乐琪 | D7: 国际班 | E7: 94.2750 | F7: 1.5000 | G7: 0.0000 | H7: 95.7750 | I7: 0.6577 | J7: 65.7739 | K7: 89.4006 | L7: 3.1250 | M7: 0.0000 | N7: 92.5256 | O7: 0.9489 | P7: 94.8918 | Q7: 100.0000 | R7: 0.0000 | S7: 0.0000 | T7: 100.0000 | U7: 1.0000 | V7: 100.0000 | W7: 89.5790 | X7: 5
A8: 6 | B8: 2021210647 | C8: 金鹏 | D8: 国际班 | E8: 93.9688 | F8: 14.0000 | G8: 0.0000 | H8: 107.9688 | I8: 0.7415 | J8: 74.1480 | K8: 89.3606 | L8: 0.0000 | M8: 0.0000 | N8: 89.3606 | O8: 0.9165 | P8: 91.6458 | Q8: 100.0000 | R8: 0.0000 | S8: 0.0000 | T8: 100.0000 | U8: 1.0000 | V8: 100.0000 | W8: 88.9817 | X8: 6
A9: 7 | B9: 2021215358 | C9: 石婷婷 | D9: 国际班 | E9: 97.5813 | F9: 2.0000 | G9: 0.0000 | H9: 99.5813 | I9: 0.6839 | J9: 68.3878 | K9: 90.3733 | L9: 0.0000 | M9: 0.0000 | N9: 90.3733 | O9: 0.9268 | P9: 92.6845 | Q9: 100.0000 | R9: 0.0000 | S9: 0.0000 | T9: 100.0000 | U9: 1.0000 | V9: 100.0000 | W9: 88.5567 | X9: 7
A10: 8 | B10: 2021210621 | C10: 李晨 | D10: 国际班 | E10: 97.5375 | F10: 5.5000 | G10: 0.0000 | H10: 103.0375 | I10: 0.7076 | J10: 70.7614 | K10: 89.2314 | L10: 0.1875 | M10: 0.0000 | N10: 89.4189 | O10: 0.9171 | P10: 91.7057 | Q10: 100.0000 | R10: 0.0000 | S10: 0.0000 | T10: 100.0000 | U10: 1.0000 | V10: 100.0000 | W10: 88.3463 | X10: 8
A11: 9 | B11: 2021210593 | C11: 陈一新 | D11: 国际班 | E11: 97.1438 | F11: 9.2000 | G11: 0.0000 | H11: 106.3438 | I11: 0.7303 | J11: 73.0320 | K11: 83.6500 | L11: 1.8750 | M11: 0.0000 | N11: 85.5250 | O11: 0.8771 | P11: 87.7122 | Q11: 100.0000 | R11: 0.0000 | S11: 0.0000 | T11: 100.0000 | U11: 1.0000 | V11: 100.0000 | W11: 86.0049 | X11: 9
A12: 10 | B12: 2021210667 | C12: 刘莉莉 | D12: 国际班 | E12: 94.3625 | F12: 3.0000 | G12: 0.0000 | H12: 97.3625 | I12: 0.6686 | J12: 66.8641 | K12: 87.2378 | L12: 0.0000 | M12: 0.0000 | N12: 87.2378 | O12: 0.8947 | P12: 89.4688 | Q12: 100.0000 | R12: 0.0000 | S12: 0.0000 | T12: 100.0000 | U12: 1.0000 | V12: 100.0000 | W12: 86.0010 | X12: 10
A13: 11 | B13: 2021210627 | C13: 王晓东 | D13: 国际班 | E13: 97.6250 | F13: 5.1000 | G13: 0.0000 | H13: 102.7250 | I13: 0.7055 | J13: 70.5468 | K13: 85.3513 | L13: 0.0000 | M13: 0.0000 | N13: 85.3513 | O13: 0.8753 | P13: 87.5341 | Q13: 100.0000 | R13: 0.0000 | S13: 0.0000 | T13: 100.0000 | U13: 1.0000 | V13: 100.0000 | W13: 85.3832 | X13: 11
A14: 12 | B14: 2021210651 | C14: 姜峻韬 | D14: 国际班 | E14: 97.0125 | F14: 14.0000 | G14: 0.0000 | H14: 111.0125 | I14: 0.7624 | J14: 76.2383 | K14: 80.2933 | L14: 3.4563 | M14: 0.0000 | N14: 83.7496 | O14: 0.8589 | P14: 85.8914 | Q14: 100.0000 | R14: 0.0000 | S14: 0.0000 | T14: 100.0000 | U14: 1.0000 | V14: 100.0000 | W14: 85.3716 | X14: 12
A15: 13 | B15: 2021215329 | C15: 李伟静 | D15: 国际班 | E15: 97.5375 | F15: 0.0000 | G15: 0.0000 | H15: 97.5375 | I15: 0.6698 | J15: 66.9843 | K15: 82.2359 | L15: 3.0000 | M15: 0.0000 | N15: 85.2359 | O15: 0.8742 | P15: 87.4157 | Q15: 100.0000 | R15: 0.0000 | S15: 0.0000 | T15: 100.0000 | U15: 1.0000 | V15: 100.0000 | W15: 84.5878 | X15: 13
A16: 14 | B16: 2021215373 | C16: 张东伟 | D16: 国际班 | E16: 97.0563 | F16: 0.0000 | G16: 0.0000 | H16: 97.0563 | I16: 0.6665 | J16: 66.6538 | K16: 83.0250 | L16: 0.0000 | M16: 0.0000 | N16: 83.0250 | O16: 0.8515 | P16: 85.1483 | Q16: 100.0000 | R16: 0.0000 | S16: 0.0000 | T16: 100.0000 | U16: 1.0000 | V16: 100.0000 | W16: 82.9345 | X16: 14
